Workbook

Sheet devis
A1: Simulation du calcul de la prime annuelle d'assurance auto d'un nouvel assuré
A3: Date du jour | B3: =NOW() -> 2020-02-17T09:27:01.580
A5: Le véhicule | D5: Le contrat
A6: Marque | B6: Renault | D6: Formule | E6: Différence
A7: Modèle | B7: Clio
A8: Puissance | B8: 3 | D8: Le véhicule | E8: Année
A9: Immatriculation | B9: DQ-9A7-SQ | C9: =IF(AND(ISTEXT(LEFT(B9,2)),ISNUMBER(MID(B9,4,3)),ISTEXT(RIGHT(B9,2))),"","Erreur") -> Erreur | D9: Ancienneté | E9: =IF(DATE(YEAR(B3),MONTH(B10),DAY(B10))>B3,YEAR(B3)-YEAR(B10)-1,YEAR(B3)-YEAR(B10)) -> 3
A10: Date 1ère immatriculation | B10: 2016-03-10
A11: Lieu de stationnement | B11: Jardin clos | D11: Montant de la prime
A12: Bonus - Malus déclaré | B12: 0.5 | D12: Éléments | E12: Montant
A13: Bonus acquis depuis | B13: 9 | D13: Vehicule
D14: Cotisation | E14: =IFERROR(VLOOKUP(B8,param!$A$11:$B$22,2,FALSE),"") -> 400
D15: Réduction ancienneté | E15: =-IFERROR(VLOOKUP(E9,param!$E$11:$F$21,2,TRUE)*E14,"") -> -19.6
A16: Le souscripteur | D16: Prime de base | E16: =SUM(devis!E14:E15)*VLOOKUP(E6,param!B4:C7,2,FALSE) -> 665.7
A17: Nom | B17: XUARD
A18: Prénom | B18: Seb
A19: Date de naissance | B19: 1965-08-15
A20: Situation | B20: célibataire
A21: Date d'obtention du permis | B21: 1985-07-01
A22: Usage | B22: privés et trajets travail

Sheet param
A1: Paramètres
U2: 1 | V2: 2 | W2: 3 | X2: 4 | Y2: 5 | Z2: 6 | AA2: 7 | AB2: 8 | AC2: 9 | AD2: 10 | AE2: 11
A3: Type contrat | B3: Nom du contrat | C3: Coefficient | E3: Taxes et frais | F3: % | U3: Audi | V3: BMW | W3: Citroen | X3: Dacia | Y3: Fiat | Z3: Ford | AA3: Mercedes | AB3: Peugeot | AC3: Renault | AD3: Toyota | AE3: Volkswagen
A4: 1 | B4: Initiale | C4: 1 | E4: Fiscale | F4: 0.33 | U4: A1 | V4: I8 | W4: Berlingo | X4: Duster | Y4: 500 | Z4: C-MAX | AA4: Classe A | AB4: 107 | AC4: Captur | AD4: Auris | AE4: Amarok
A5: 2 | B5: Essentiel | C5: 1.24 | E5: Protection | F5: 0.02 | U5: A3 | V5: Serie 1 | W5: C1 | X5: Logan | Y5: 500c | Z5: Fiesta | AA5: Classe B | AB5: 206 | AC5: Clio | AD5: Avensis | AE5: Crafter
A6: 3 | B6: Différence | C6: 1.75 | U6: A4 | V6: Serie 2 | W6: C2 | X6: Sandero | Y6: Ducato | Z6: Focus | AA6: Classe C | AB6: 207 | AC6: Espace | AD6: Aygo | AE6: Eos
A7: 4 | B7: Plénitude | C7: 2.2 | E7: Frais de gestion | F7: 0.1382 | U7: A5 | V7: Serie 3 | W7: C3 | Y7: Grande | Z7: Fusion | AA7: Classe clk | AB7: 208 | AC7: Kadjar | AD7: Corolla | AE7: Fox
U8: A6 | V8: Serie 4 | W8: C4 | Y8: Panda | Z8: Ka | AA8: Classe cls | AB8: 307 | AC8: Kangoo | AD8: Iq | AE8: Golf
A9: Base prime | E9: Véhicule | N9: Marque | U9: A7 | V9: Serie 5 | W9: C5 | Y9: Punto | Z9: Kuga | AA9: Classe E | AB9: 308 | AC9: Koleos | AD9: Land | AE9: Multivan
A10: CV | B10: Prime | E10: Age | F10: Réduction | N10: num | O10: Nom | Q10: Modèle | U10: A8 | V10: Serie 7 | W10: C6 | Y10: Scudo | Z10: Mondeo | AA10: Classe glc | AB10: 406 | AC10: Laguna | AD10: Prius | AE10: Passat
A11: 2 | B11: 350 | E11: 0 | F11: 0 | N11: 1 | O11: Audi | Q11: Marque | R11: Modèle | S11: Puissance fiscale | U11: Q3 | V11: X1 | W11: C8 | Z11: S-MAX | AA11: Classe gle | AB11: 407 | AC11: Master | AD11: Prius+ | AE11: Polo
A12: 3 | B12: 400 | E12: 1 | F12: 0 | N12: 2 | O12: BMW | Q12: 1 | R12: A1 | S12: 5 | U12: Q5 | V12: X3 | W12: Ds3 | Z12: Transit | AA12: Classe glk | AB12: 508 | AC12: Megane | AD12: Rav4 | AE12: Scirocco
A13: 4 | B13: 450 | E13: 2 | F13: 0.025 | N13: 3 | O13: Citroen | Q13: 1 | R13: A3 | S13: 4 | U13: Q7 | V13: X4 | W13: Ds4 | AA13: Classe m | AB13: 807 | AC13: Mégane | AD13: Verso | AE13: Sharan
A14: 5 | B14: 500 | E14: 3 | F14: 0.049 | N14: 4 | O14: Dacia | Q14: 1 | R14: A4 | S14: 5 | U14: SQ5 | V14: X5 | W14: Ds5 | AA14: Classe R | AB14: 1007 | AC14: scenic | AD14: Yaris | AE14: Tiguan
A15: 6 | B15: 550 | E15: 4 | F15: 0.073 | N15: 5 | O15: Fiat | Q15: 1 | R15: A5 | S15: 8 | V15: X6 | W15: Jumper | AA15: SLK | AB15: 2008 | AC15: scénic | AE15: Touareg
A16: 7 | B16: 610 | E16: 5 | F16: 0.096 | N16: 6 | O16: Ford | Q16: 1 | R16: A6 | S16: 8 | W16: Jumpy | AA16: Sprinter | AB16: 3008 | AC16: Super | AE16: Touran
A17: 8 | B17: 650 | E17: 6 | F17: 0.119 | N17: 7 | O17: Mercedes | Q17: 1 | R17: A7 | S17: 8 | W17: Saxo | AA17: Vito | AB17: 4007 | AC17: Trafic
A18: 9 | B18: 710 | E18: 7 | F18: 0.141 | N18: 8 | O18: Peugeot | Q18: 1 | R18: A8 | S18: 12 | W18: Xsara | AB18: 5008 | AC18: Twingo
A19: 10 | B19: 750 | E19: 8 | F19: 0.162 | N19: 9 | O19: Renault | Q19: 1 | R19: Q3 | S19: 5 | AB19: 206+
A20: 11 | B20: 800 | E20: 9 | F20: 0.183 | N20: 10 | O20: Toyota | Q20: 1 | R20: Q5 | S20: 5 | AB20: Boxer
A21: 12 | B21: 850 | E21: 10 | F21: 0.204 | N21: 11 | O21: Volkswagen | Q21: 1 | R21: Q7 | S21: 8 | AB21: Expert
A22: 13 | B22: 900 | Q22: 1 | R22: SQ5 | S22: 8 | AB22: Partner
Q23: 1 | R23: TT | S23: 5 | AB23: Rcz
Q24: 2 | R24: I8 | S24: 3
Q25: 2 | R25: Serie 1 | S25: 5
Q26: 2 | R26: Serie 2 | S26: 3
Q27: 2 | R27: Serie 3 | S27: 5
Q28: 2 | R28: Serie 4 | S28: 5
Q29: 2 | R29: Serie 5 | S29: 8
Q30: 2 | R30: Serie 7 | S30: 13
Q31: 2 | R31: X1 | S31: 5
Q32: 2 | R32: X3 | S32: 5
Q33: 2 | R33: X4 | S33: 8
Q34: 2 | R34: X5 | S34: 8
Q35: 2 | R35: X6 | S35: 8
Q36: 3 | R36: Berlingo | S36: 4
Q37: 3 | R37: C1 | S37: 2
Q38: 3 | R38: C2 | S38: 3
Q39: 3 | R39: C3 | S39: 3
Q40: 3 | R40: C4 | S40: 4
Q41: 3 | R41: C5 | S41: 5
Q42: 3 | R42: C6 | S42: 7
Q43: 3 | R43: C8 | S43: 6
Q44: 3 | R44: Ds3 | S44: 4
Q45: 3 | R45: Ds4 | S45: 5
Q46: 3 | R46: Ds5 | S46: 5
Q47: 3 | R47: Jumper | S47: 5
Q48: 3 | R48: Jumpy | S48: 5
Q49: 3 | R49: Saxo | S49: 2
Q50: 3 | R50: Xsara | S50: 4
Q51: 4 | R51: Duster | S51: 3
Q52: 4 | R52: Logan | S52: 3
Q53: 4 | R53: Sandero | S53: 3
Q54: 5 | R54: 500 | S54: 2
Q55: 5 | R55: 500c | S55: 2
Q56: 5 | R56: Ducato | S56: 6
Q57: 5 | R57: Grande | S57: 2
Q58: 5 | R58: Panda | S58: 2
Q59: 5 | R59: Punto | S59: 2
Q60: 5 | R60: Scudo | S60: 5
Q61: 6 | R61: C-MAX | S61: 4
Q62: 6 | R62: Fiesta | S62: 3
Q63: 6 | R63: Focus | S63: 4
Q64: 6 | R64: Fusion | S64: 3
Q65: 6 | R65: Ka | S65: 2
Q66: 6 | R66: Kuga | S66: 5
Q67: 6 | R67: Mondeo | S67: 5
Q68: 6 | R68: S-MAX | S68: 6
Q69: 6 | R69: Transit | S69: 6
Q70: 7 | R70: Classe A | S70: 5
Q71: 7 | R71: Classe B | S71: 4
Q72: 7 | R72: Classe C | S72: 5
Q73: 7 | R73: Classe clk | S73: 5
Q74: 7 | R74: Classe cls | S74: 8
Q75: 7 | R75: Classe E | S75: 8
Q76: 7 | R76: Classe glc | S76: 5
Q77: 7 | R77: Classe gle | S77: 8
Q78: 7 | R78: Classe glk | S78: 5
Q79: 7 | R79: Classe m | S79: 8
Q80: 7 | R80: Classe R | S80: 8
Q81: 7 | R81: SLK | S81: 4
Q82: 7 | R82: Sprinter | S82: 6
Q83: 7 | R83: Vito | S83: 5
Q84: 8 | R84: 107 | S84: 2
Q85: 8 | R85: 206 | S85: 3
Q86: 8 | R86: 207 | S86: 4
Q87: 8 | R87: 208 | S87: 3
Q88: 8 | R88: 307 | S88: 5
Q89: 8 | R89: 308 | S89: 4
Q90: 8 | R90: 406 | S90: 6
Q91: 8 | R91: 407 | S91: 5
Q92: 8 | R92: 508 | S92: 5
Q93: 8 | R93: 807 | S93: 5
Q94: 8 | R94: 1007 | S94: 3
Q95: 8 | R95: 2008 | S95: 4
Q96: 8 | R96: 3008 | S96: 4
Q97: 8 | R97: 4007 | S97: 6
Q98: 8 | R98: 5008 | S98: 5
Q99: 8 | R99: 206+ | S99: 3
Q100: 8 | R100: Boxer | S100: 6
Q101: 8 | R101: Expert | S101: 4
Q102: 8 | R102: Partner | S102: 4
Q103: 8 | R103: Rcz | S103: 5
Q104: 9 | R104: Captur | S104: 3
Q105: 9 | R105: Clio | S105: 3
Q106: 9 | R106: Espace | S106: 4
Q107: 9 | R107: Kadjar | S107: 3
Q108: 9 | R108: Kangoo | S108: 3
Q109: 9 | R109: Koleos | S109: 5
Q110: 9 | R110: Laguna | S110: 3
Q111: 9 | R111: Master | S111: 6
Q112: 9 | R112: Megane | S112: 5
Q113: 9 | R113: Mégane | S113: 4
Q114: 9 | R114: scenic | S114: 3
Q115: 9 | R115: scénic | S115: 3
Q116: 9 | R116: Super | S116: 3
Q117: 9 | R117: Trafic | S117: 5
Q118: 9 | R118: Twingo | S118: 2
Q119: 10 | R119: Auris | S119: 4
Q120: 10 | R120: Avensis | S120: 5
Q121: 10 | R121: Aygo | S121: 2
Q122: 10 | R122: Corolla | S122: 3
Q123: 10 | R123: Iq | S123: 2
Q124: 10 | R124: Land | S124: 8
Q125: 10 | R125: Prius | S125: 3
Q126: 10 | R126: Prius+ | S126: 4
Q127: 10 | R127: Rav4 | S127: 6
Q128: 10 | R128: Verso | S128: 5
Q129: 10 | R129: Yaris | S129: 3
Q130: 11 | R130: Amarok | S130: 5
Q131: 11 | R131: Crafter | S131: 5
Q132: 11 | R132: Eos | S132: 5
Q133: 11 | R133: Fox | S133: 3
Q134: 11 | R134: Golf | S134: 4
Q135: 11 | R135: Multivan | S135: 7
Q136: 11 | R136: Passat | S136: 5
Q137: 11 | R137: Polo | S137: 4
Q138: 11 | R138: Scirocco | S138: 3
Q139: 11 | R139: Sharan | S139: 5
Q140: 11 | R140: Tiguan | S140: 5
Q141: 11 | R141: Touareg | S141: 8
Q142: 11 | R142: Touran | S142: 4

Sheet devis2
A1: Simulation du calcul de la prime annuelle d'assurance auto d'un nouvel assuré
A3: Date du jour | B3: =NOW() -> 2020-02-17T09:27:01.580
A5: Le véhicule | D5: Le contrat
A6: Marque | B6: Renault | D6: Formule | E6: Différence
A7: Modèle | B7: Clio
A8: Puissance | B8: 3 | D8: Montant de la prime
A9: Immatriculation | B9: DQ-9A7-SQ | C9: =IF(AND(ISTEXT(LEFT(B9,2)),ISNUMBER(MID(B9,4,3)),ISTEXT(RIGHT(B9,2))),"","Erreur") -> Erreur | D9: Eléments | E9: Montant
A10: Ancienneté véhicule | B10: 2016-02-10 | D10: Vehicule
A11: Lieu de stationnement | B11: Jardin clos | D11: Puissance | E11: =IFERROR(VLOOKUP(B8,param!$A$11:$B$22,2,TRUE),"") -> 400
A12: Bonus - Malus déclaré | B12: 2.5 | D12: Age | E12: =IFERROR(VLOOKUP(B8,param!$A$11:$B$22,2,TRUE),"") -> 400
A13: Bonus acquis depuis | B13: 9 | D13: Prime de base | E13: =SUM(E11:E12)*VLOOKUP(E6,param!$B$4:$C$7,2,FALSE) -> 1400
A16: Le souscripteur
A17: Nom | B17: XUARD
A18: Prénom | B18: Seb
A19: Date de naissance | B19: 1965-08-15
A20: Situation | B20: célibataire
A21: Date d'obtention du permis | B21: 1985-07-01
A22: Usage | B22: privés et trajets travail

Sheet etatDesPrimes
A1: Prime annuelle des 4 dernières années
A3: Année | B3: 2019
D4: Année en cours | I4: Rappel années antérieures
A5: nom | B5: prénom | C5: Type contrat | D5: Prime pure | E5: Bonus malus | F5: Montant HT | G5: Frais et taxes | H5: 2019 | I5: 2018 | J5: 2017 | K5: 2016
A6: Morizet | B6: Yann | C6: Essentiel | D6: 448 | E6: 0.51 | F6: =D6*E6 -> 228.48 | G6: =F6*0.16 -> 36.5568 | H6: =ROUND(F6+G6,2) -> 265.04 | I6: 332.6 | J6: 302.36 | K6: 314.45
A7: Watier | B7: Guillaume | C7: Différence | D7: 1249 | E7: 1.9 | F7: =D7*E7 -> 2373.1 | G7: =F7*0.16 -> 379.696 | H7: =ROUND(F7+G7,2) -> 2752.8 | I7: 724.42 | J7: 696.56 | K7: 724.42
A8: Henry | B8: Charline | C8: Essentiel | D8: 1755 | E8: 0.5 | F8: =D8*E8 -> 877.5 | G8: 140.4 | H8: 1017.9 | I8: 1180.76 | J8: 1227.99 | K8: 1180.76
A9: Cerdan | B9: Axel | C9: Initiale | D9: 385 | E9: 1.55 | F9: 596.75 | G9: 95.48 | H9: 692.23 | I9: 334.95 | J9: 290.29 | K9: 279.13
A10: Bouzouba | B10: Yassine | C10: Différence | D10: 966 | E10: 0.93 | F10: 898.38 | G10: 143.7408 | H10: 1042.12 | I10: 672.34 | J10: 699.23 | K10: 726.12
A11: Amit | B11: Hagay | C11: Plénitude | D11: 444 | E11: 0.72 | F11: 319.68 | G11: 51.1488 | H11: 370.83 | I11: 293.57 | J11: 293.57 | K11: 305.32
A12: Mourgues | B12: Regis | C12: Différence | D12: 611 | E12: 1.93 | F12: 1179.23 | G12: 188.6768 | H12: 1367.91 | I12: 439.43 | J12: 351.54 | K12: 0
A13: Diot | B13: Herve | C13: Essentiel | D13: 421 | E13: 0.61 | F13: 256.81 | G13: 41.0896 | H13: 297.9 | I13: 263.71 | J13: 273.13 | K13: 235.46
A14: Elliot | B14: Mary | C14: Initiale | D14: 643 | E14: 3.41 | F14: 2192.63 | G14: 350.8208 | H14: 2543.45 | I14: 477.36 | J14: 377.62 | K14: 391.87
A15: Hasle-De-Barral | B15: Alexandre | C15: Initiale | D15: 387 | E15: 0.52 | F15: 201.24 | G15: 32.1984 | H15: 233.44 | I15: 305.27 | J15: 258.7 | K15: 269.05
A16: Launeau | B16: Patrick | C16: Initiale | D16: 446 | E16: 1.08 | F16: 481.68 | G16: 77.0688 | H16: 558.75 | I16: 258.68 | J16: 268.63 | K16: 248.73
A17: Mandin | B17: Louison | C17: Différence | D17: 1857 | E17: 0.5 | F17: 928.5 | G17: 148.56 | H17: 1077.06 | I17: 1206.31 | J17: 1206.31 | K17: 1254.56
A18: Langlais | B18: Benoit | C18: Essentiel | D18: 406 | E18: 1.38 | F18: 560.28 | G18: 89.6448 | H18: 649.92 | I18: 240.19 | J18: 226.59 | K18: 226.59
A19: Garibaldi | B19: Cynthia | C19: Plénitude | D19: 407 | E19: 2.06 | F19: 838.42 | G19: 134.1472 | H19: 972.57 | I19: 236.06 | J19: 245.5 | K19: 236.06
A20: Le-Deit | B20: Laetitia | C20: Initiale | D20: 423 | E20: 0.61 | F20: 258.03 | G20: 41.2848 | H20: 299.31 | I20: 264.97 | J20: 264.97 | K20: 264.97
A21: Civet | B21: Francois | C21: Différence | D21: 474 | E21: 0.77 | F21: 364.98 | G21: 58.3968 | H21: 423.38 | I21: 274.92 | J21: 264.35 | K21: 264.35
A22: Morcrette | B22: Annabelle | C22: Initiale | D22: 405 | E22: 1.33 | F22: 538.65 | G22: 86.184 | H22: 624.83 | I22: 300.67 | J22: 273.34 | K22: 284.27
A23: Viard | B23: Sophie | C23: Différence | D23: 739 | E23: 0.5 | F23: 369.5 | G23: 59.12 | H23: 428.62 | I23: 505.77 | J23: 495.85 | K23: 495.85
A24: Denis | B24: Thomas | C24: Initiale | D24: 456 | E24: 0.72 | F24: 328.32 | G24: 52.5312 | H24: 380.85 | I24: 280.35 | J24: 291.56 | K24: 302.78
A25: Grasset | B25: Olivier | C25: Essentiel | D25: 1333 | E25: 0.5 | F25: 666.5 | G25: 106.64 | H25: 773.14 | I25: 773.14 | J25: 743.4 | K25: 773.14
A26: Vacher | B26: Pierre | C26: Essentiel | D26: 411 | E26: 1.17 | F26: 480.87 | G26: 76.9392 | H26: 557.81 | I26: 238.38 | J26: 229.21 | K26: 238.38
A27: Jorissen | B27: Frans | C27: Différence | D27: 1101 | E27: 0.5 | F27: 550.5 | G27: 88.08 | H27: 638.58 | I27: 715.21 | J27: 752.2 | K27: 789.2
A28: Remy | B28: Cecile | C28: Différence | D28: 762 | E28: 0.5 | F28: 381 | G28: 60.96 | H28: 441.96 | I28: 654.1 | J28: 565.41 | K28: 554.32
A29: Gaudin | B29: Pierre | C29: Initiale | D29: 422 | E29: 0.55 | F29: 232.1 | G29: 37.136 | H29: 269.24 | I29: 293.71 | J29: 305.01 | K29: 282.42
A30: Geslin | B30: Emmanuelle | C30: Initiale | D30: 1553 | E30: 0.5 | F30: 776.5 | G30: 124.24 | H30: 900.74 | I30: 900.74 | J30: 935.38 | K30: 970.03
A31: Leroux | B31: Alexandre | C31: Initiale | D31: 897 | E31: 0.93 | F31: 834.21 | G31: 133.4736 | H31: 967.68 | I31: 686.74 | J31: 597.17 | K31: 517.55
A32: Bicchi | B32: Erica | C32: Plénitude | D32: 457 | E32: 0.68 | F32: 310.76 | G32: 49.7216 | H32: 360.48 | I32: 318.07 | J32: 330.79 | K32: 318.07
A33: Metzger | B33: Edouard | C33: Initiale | D33: 952 | E33: 0.78 | F33: 742.56 | G33: 118.8096 | H33: 861.37 | I33: 684.68 | J33: 710.52 | K33: 0
A34: Baltzer | B34: Carla | C34: Différence | D34: 1259 | E34: 0.5 | F34: 629.5 | G34: 100.72 | H34: 730.22 | I34: 949.29 | J34: 847.58 | K34: 847.58
A35: Happert | B35: Solene | C35: Initiale | D35: 876 | E35: 0.5 | F35: 438 | G35: 70.08 | H35: 508.08 | I35: 751.96 | J35: 644.54 | K35: 673.83
A36: Parent | B36: Briz | C36: Essentiel | D36: 1924 | E36: 0.5 | F36: 962 | G36: 153.92 | H36: 1115.92 | I36: 1160.56 | J36: 1206.98 | K36: 1253.4
A37: Blanchet | B37: Carlito | C37: Plénitude | D37: 1715 | E37: 0.5 | F37: 857.5 | G37: 137.2 | H37: 994.7 | I37: 994.7 | J37: 1032.96 | K37: 956.44
A38: Thebault | B38: Erwan | C38: Plénitude | D38: 1640 | E38: 2.75 | F38: 4510 | G38: 721.6 | H38: 5231.6 | I38: 951.2 | J38: 951.2 | K38: 989.25
A39: Beaunay | B39: Stephanie | C39: Plénitude | D39: 390 | E39: 3.32 | F39: 1294.8 | G39: 207.168 | H39: 1501.97 | I39: 294.06 | J39: 233.52 | K39: 242.17
A40: Bourgeais | B40: Hugo | C40: Différence | D40: 1429 | E40: 0.5 | F40: 714.5 | G40: 114.32 | H40: 828.82 | I40: 878.55 | J40: 913.69 | K40: 878.55
A41: Francois | B41: Yann | C41: Essentiel | D41: 504 | E41: 0.6 | F41: 302.4 | G41: 48.384 | H41: 350.78 | I41: 368.32 | J41: 385.07 | K41: 334.84
A42: Mercier | B42: Eric | C42: Essentiel | D42: 448 | E42: 0.74 | F42: 331.52 | G42: 53.0432 | H42: 384.56 | I42: 400.15 | J42: 419.83 | K42: 439.51
A43: Sauvagnat | B43: Mickael | C43: Différence | D43: 680 | E43: 0.63 | F43: 428.4 | G43: 68.544 | H43: 496.94 | I43: 591.6 | J43: 621.94 | K43: 652.28
A44: Laffourcade | B44: Roland | C44: Initiale | D44: 853 | E44: 0.67 | F44: 571.51 | G44: 91.4416 | H44: 662.95 | I44: 494.74 | J44: 514.53 | K44: 494.74
A45: Keita | B45: Fanta | C45: Différence | D45: 1894 | E45: 0.5 | F45: 947 | G45: 151.52 | H45: 1098.52 | I45: 1340.19 | J45: 1403.02 | K45: 1214.55
A46: Lenta | B46: Laurent | C46: Initiale | D46: 789 | E46: 0.58 | F46: 457.62 | G46: 73.2192 | H46: 530.84 | I46: 658.97 | J46: 685.33 | K46: 720.48
A47: Boucetta | B47: Ali | C47: Essentiel | D47: 451 | E47: 0.75 | F47: 338.25 | G47: 54.12 | H47: 392.37 | I47: 313.9 | J47: 325.97 | K47: 338.04
A48: Puig | B48: Clemence | C48: Initiale | D48: 428 | E48: 0.61 | F48: 261.08 | G48: 41.7728 | H48: 302.85 | I48: 302.85 | J48: 317.05 | K48: 331.25
A49: Mocquet | B49: Antoine | C49: Différence | D49: 453 | E49: 1.94 | F49: 878.82 | G49: 140.6112 | H49: 1019.43 | I49: 273.25 | J49: 253.01 | K49: 263.13
A50: Aussenac | B50: Raphael | C50: Initiale | D50: 392 | E50: 0.57 | F50: 223.44 | G50: 35.7504 | H50: 259.19 | I50: 227.36 | J50: 218.62 | K50: 227.36
A51: Girardeau | B51: Jacques | C51: Initiale | D51: 1837 | E51: 0.99 | F51: 1818.63 | G51: 290.9808 | H51: 2109.61 | I51: 1555.57 | J51: 1228.08 | K51: 1064.34
A52: Zanella | B52: Alain | C52: Essentiel | D52: 427 | E52: 2.48 | F52: 1058.96 | G52: 169.4336 | H52: 1228.39 | I52: 297.19 | J52: 311.34 | K52: 325.5
A53: Bosse | B53: Luzia | C53: Initiale | D53: 410 | E53: 2.76 | F53: 1131.6 | G53: 181.056 | H53: 1312.66 | I53: 256.82 | J53: 256.82 | K53: 256.82
A54: Carpy | B54: Sabrina | C54: Essentiel | D54: 706 | E54: 0.75 | F54: 529.5 | G54: 84.72 | H54: 614.22 | I54: 475 | J54: 475 | K54: 494
A55: Schiebel | B55: Ralf | C55: Différence | D55: 782 | E55: 2.59 | F55: 2025.38 | G55: 324.0608 | H55: 2349.44 | I55: 571.49 | J55: 594.35 | K55: 617.2
A56: Strzerzynski | B56: Pierre | C56: Essentiel | D56: 387 | E56: 0.6 | F56: 232.2 | G56: 37.152 | H56: 269.35 | I56: 341.18 | J56: 358.24 | K56: 311.33
A57: Ndjao | B57: Mayabassim | C57: Plénitude | D57: 755 | E57: 0.71 | F57: 536.05 | G57: 85.768 | H57: 621.82 | I57: 665.61 | J57: 698.89 | K57: 557.45
A58: Le-Menn | B58: Erwan | C58: Initiale | D58: 1939 | E58: 2.61 | F58: 5060.79 | G58: 809.7264 | H58: 5870.52 | I58: 1124.62 | J58: 1124.62 | K58: 1124.62
A59: Masse | B59: Marion | C59: Plénitude | D59: 448 | E59: 0.52 | F59: 232.96 | G59: 37.2736 | H59: 270.23 | I59: 259.84 | J59: 259.84 | K59: 259.84
A60: Denis | B60: David | C60: Initiale | D60: 747 | E60: 0.61 | F60: 455.67 | G60: 72.9072 | H60: 528.58 | I60: 450.59 | J60: 450.59 | K60: 468.61
A61: Da-Silva | B61: Lucas | C61: Plénitude | D61: 429 | E61: 0.63 | F61: 270.27 | G61: 43.2432 | H61: 313.51 | I61: 318.49 | J61: 275.71 | K61: 237.68
A62: Reiland | B62: Damien | C62: Initiale | D62: 865 | E62: 0.5 | F62: 432.5 | G62: 69.2 | H62: 501.7 | I62: 551.87 | J62: 573.94 | K62: 596.02
A63: Lorand | B63: Jean-Pierre | C63: Initiale | D63: 432 | E63: 0.5 | F63: 216 | G63: 34.56 | H63: 250.56 | I63: 250.56 | J63: 260.58 | K63: 0
A64: Reizine | B64: Hugo | C64: Initiale | D64: 444 | E64: 0.56 | F64: 248.64 | G64: 39.7824 | H64: 288.42 | I64: 339.93 | J64: 270.96 | K64: 280.81
A65: Chubb | B65: Timothy | C65: Essentiel | D65: 1353 | E65: 0.5 | F65: 676.5 | G65: 108.24 | H65: 784.74 | I65: 847.52 | J65: 881.42 | K65: 915.32
A66: Lepinay | B66: Alexandra | C66: Essentiel | D66: 417 | E66: 0.65 | F66: 271.05 | G66: 43.368 | H66: 314.42 | I66: 241.86 | J66: 251.16 | K66: 232.56
A67: Beneteau | B67: Eric | C67: Essentiel | D67: 440 | E67: 1.77 | F67: 778.8 | G67: 124.608 | H67: 903.41 | I67: 377.7 | J67: 324.58 | K67: 295.08
A68: Mojtahid | B68: Meryem | C68: Différence | D68: 1621 | E68: 0.5 | F68: 810.5 | G68: 129.68 | H68: 940.18 | I68: 940.18 | J68: 904.02 | K68: 940.18
A69: Chakib | B69: Anis | C69: Différence | D69: 394 | E69: 0.51 | F69: 200.94 | G69: 32.1504 | H69: 233.09 | I69: 228.52 | J69: 219.73 | K69: 219.73
A70: Kabura- | B70: Raphael | C70: Essentiel | D70: 431 | E70: 3.38 | F70: 1456.78 | G70: 233.0848 | H70: 1689.86 | I70: 309.98 | J70: 321.67 | K70: 292.43
A71: Marquant | B71: Baptiste | C71: Plénitude | D71: 422 | E71: 2.41 | F71: 1017.02 | G71: =F71*0.16 -> 162.7232 | H71: =ROUND(F71+G71,2) -> 1179.74 | I71: 293.71 | J71: 233.1 | K71: 233.1
A72: Fontanier | B72: Christophe | C72: Plénitude | D72: 1305 | E72: 0.5 | F72: =D72*E72 -> 652.5 | G72: 104.4 | H72: 756.9 | I72: 908.28 | J72: 943.21 | K72: 873.35
A73: Leclercq | B73: Antonin | C73: Initiale | D73: 422 | E73: 0.55 | F73: 232.1 | G73: 37.136 | H73: 269.24 | I73: 337.77 | J73: 292.73 | K73: 281.47
A74: Lorans | B74: Mathieu | C74: Plénitude | D74: 457 | E74: 2.61 | F74: 1192.77 | G74: 190.8432 | H74: 1383.61 | I74: 312.77 | J74: 312.77 | K74: 312.77
A75: Sanchez- | B75: Sophie | C75: Différence | D75: 405 | E75: 3.02 | F75: 1223.1 | G75: 195.696 | H75: 1418.8 | I75: 248.99 | J75: 258.95 | K75: 268.91
A76: Sanchez-Angulo | B76: Martin | C76: Différence | D76: 792 | E76: 0.5 | F76: 396 | G76: 63.36 | H76: 459.36 | I76: 459.36 | J76: 477.73 | K76: 459.36
A77: Lutfalla | B77: Suzanne | C77: Différence | D77: 431 | E77: 2.9 | F77: 1249.9 | G77: 199.984 | H77: 1449.88 | I77: 249.98 | J77: 259.98 | K77: 249.98
A78: Ecourtemer | B78: Tony | C78: Différence | D78: 1281 | E78: 2.67 | F78: 3420.27 | G78: 547.2432 | H78: 3967.51 | I78: 936.15 | J78: 970.83 | K78: 1005.5
A79: Tardivo | B79: Caroline | C79: Plénitude | D79: 414 | E79: 0.66 | F79: 273.24 | G79: 43.7184 | H79: 316.96 | I79: 273.74 | J79: 237.24 | K79: 228.11
A80: Guiffan | B80: Sebastien | C80: Plénitude | D80: 1530 | E80: 1.9 | F80: 2907 | G80: 465.12 | H80: 3372.12 | I80: 887.4 | J80: 887.4 | K80: 887.4
A81: Bonhomme | B81: Camille | C81: Initiale | D81: 424 | E81: 1.9 | F81: 805.6 | G81: 128.896 | H81: 934.5 | I81: 245.92 | J81: 255.76 | K81: 245.92
A82: Rakotomalala | B82: Erika | C82: Différence | D82: 447 | E82: 1.14 | F82: 509.58 | G82: 81.5328 | H82: 591.11 | I82: 321.48 | J82: 336.32 | K82: 351.16
A83: Delgove | B83: Erwann | C83: Initiale | D83: 1216 | E83: 0.5 | F83: 608 | G83: 97.28 | H83: 705.28 | I83: 719.39 | J83: 719.39 | K83: 748.16
A84: Pochat | B84: Stephane | C84: Essentiel | D84: 727 | E84: 0.61 | F84: 443.47 | G84: 70.9552 | H84: 514.43 | I84: 421.66 | J84: 421.66 | K84: 421.66
A85: Quinchard | B85: Sophie | C85: Plénitude | D85: 395 | E85: 0.52 | F85: 205.4 | G85: 32.864 | H85: 238.26 | I85: 265.76 | J85: 276.39 | K85: 287.02
A86: Maillet | B86: Gregoire | C86: Différence | D86: 1820 | E86: 0.63 | F86: 1146.6 | G86: 183.456 | H86: 1330.06 | I86: 1287.83 | J86: 1348.2 | K86: 1408.57
A87: Taty | B87: Pierre | C87: Initiale | D87: 394 | E87: 0.65 | F87: 256.1 | G87: 40.976 | H87: 297.08 | I87: 287.94 | J87: 266.61 | K87: 277.27
A88: Dumoulin | B88: Caroline | C88: Initiale | D88: 1409 | E88: 0.53 | F88: 746.77 | G88: 119.4832 | H88: 866.25 | I88: 931.63 | J88: 978.21 | K88: 1024.79
A89: Lebeau | B89: Thierry | C89: Essentiel | D89: 410 | E89: 0.71 | F89: 291.1 | G89: 46.576 | H89: 337.68 | I89: 247.31 | J89: 228.99 | K89: 238.15
A90: Badji | B90: Mamadou | C90: Initiale | D90: 452 | E90: 0.69 | F90: 311.88 | G90: 49.9008 | H90: 361.78 | I90: 398.48 | J90: 418.41 | K90: 0
A91: Capdeville | B91: Yann | C91: Initiale | D91: 1596 | E91: 0.5 | F91: 798 | G91: 127.68 | H91: 925.68 | I91: 925.68 | J91: 890.08 | K91: 925.68
A92: Lejas | B92: Damien | C92: Initiale | D92: 472 | E92: 0.59 | F92: 278.48 | G92: 44.5568 | H92: 323.04 | I92: 323.04 | J92: 338.67 | K92: 291.78
A93: Bœuf | B93: Eric | C93: Essentiel | D93: 430 | E93: 0.65 | F93: 279.5 | G93: 44.72 | H93: 324.22 | I93: 249.4 | J93: 259.38 | K93: 249.4
A94: Hemeryck | B94: Raphaele | C94: Essentiel | D94: 388 | E94: 0.62 | F94: 240.56 | G94: 38.4896 | H94: 279.05 | I94: 225.04 | J94: 234.04 | K94: 243.04
A95: Romann | B95: Coralie | C95: Essentiel | D95: 1402 | E95: 0.5 | F95: 701 | G95: 112.16 | H95: 813.16 | I95: 927 | J95: 927 | K95: 964.08
A96: Lepinay- | B96: Pierre | C96: Initiale | D96: 416 | E96: 0.54 | F96: 224.64 | G96: 35.9424 | H96: 260.58 | I96: 332.97 | J96: 346.84 | K96: 360.71
A97: Humler | B97: Eric | C97: Initiale | D97: 742 | E97: 0.5 | F97: 371 | G97: 59.36 | H97: 430.36 | I97: 662.75 | J97: 522.17 | K97: 502.09
A98: Sotin | B98: Christophe | C98: Différence | D98: 416 | E98: 1.8 | F98: 748.8 | G98: 119.808 | H98: 868.61 | I98: 289.54 | J98: 303.32 | K98: 317.11
A99: Hounkpevi | B99: Koassi-Robert | C99: Initiale | D99: 584 | E99: 0.7 | F99: 408.8 | G99: 65.408 | H99: 474.21 | I99: 426.79 | J99: 443.86 | K99: 426.79
A100: Mandin | B100: Leonard | C100: Initiale | D100: 831 | E100: 0.59 | F100: 490.29 | G100: 78.4464 | H100: 568.74 | I100: 636.21 | J100: 611.74 | K100: 636.21
A101: Thuillier | B101: Brice | C101: Initiale | D101: 667 | E101: 1.65 | F101: 1100.55 | G101: 176.088 | H101: 1276.64 | I101: 495.18 | J101: 450.16 | K101: 468.17
A102: Buissart | B102: Fabien | C102: Différence | D102: 435 | E102: 2.23 | F102: 970.05 | G102: 155.208 | H102: 1125.26 | I102: 272.48 | J102: 283.38 | K102: 272.48
A103: Gillard | B103: Arthur | C103: Différence | D103: 1098 | E103: 0.5 | F103: 549 | G103: 87.84 | H103: 636.84 | I103: 955.26 | J103: 1004.25 | K103: 1053.24
A104: Pedurthe | B104: Sandra | C104: Initiale | D104: 815 | E104: 0.5 | F104: 407.5 | G104: 65.2 | H104: 472.7 | I104: 671.23 | J104: 698.45 | K104: 734.73
A105: Desmas | B105: Thibaud | C105: Initiale | D105: 410 | E105: 2.89 | F105: 1184.9 | G105: 189.584 | H105: 1374.48 | I105: 323.41 | J105: 335.39 | K105: 347.36
A106: Mba- | B106: Assoumou-Fidele | C106: Initiale | D106: 1073 | E106: 0.5 | F106: 536.5 | G106: 85.84 | H106: 622.34 | I106: 622.34 | J106: 647.23 | K106: 622.34
A107: Ciminera | B107: Marina | C107: Initiale | D107: 1147 | E107: 0.5 | F107: 573.5 | G107: 91.76 | H107: 665.26 | I107: 705.18 | J107: 733.38 | K107: 761.59
A108: Lucas | B108: Mael | C108: Initiale | D108: 389 | E108: 3.28 | F108: 1275.92 | G108: 204.1472 | H108: 1480.07 | I108: 225.62 | J108: 225.62 | K108: 234.64
A109: Bezos | B109: Antoine | C109: Différence | D109: 1617 | E109: 0.5 | F109: 808.5 | G109: 129.36 | H109: 937.86 | I109: 937.86 | J109: 901.79 | K109: 901.79
A110: Michelon | B110: Julie | C110: Initiale | D110: 1608 | E110: 0.5 | F110: 804 | G110: 128.64 | H110: 932.64 | I110: 932.64 | J110: 932.64 | K110: 932.64
A111: Robles | B111: Rosemery | C111: Plénitude | D111: 458 | E111: 0.67 | F111: 306.86 | G111: 49.0976 | H111: 355.96 | I111: 334.71 | J111: 334.71 | K111: 334.71
A112: Loyen | B112: Herve | C112: Initiale | D112: 895 | E112: 0.99 | F112: 886.05 | G112: 141.768 | H112: 1027.82 | I112: 664.45 | J112: 604.04 | K112: 628.21
A113: Aubert | B113: Guillaume | C113: Essentiel | D113: 1458 | E113: 0.5 | F113: 729 | G113: 116.64 | H113: 845.64 | I113: 964.03 | J113: 1012.23 | K113: 867.63
A114: Letoublon | B114: Thomas | C114: Plénitude | D114: 1498 | E114: 0.5 | F114: 749 | G114: 119.84 | H114: 868.84 | I114: 1146.87 | J114: 1190.98 | K114: 0
A115: Guivel | B115: Christele | C115: Essentiel | D115: 977 | E115: 0.91 | F115: 889.07 | G115: 142.2512 | H115: 1031.32 | I115: 804.66 | J115: 718.44 | K115: 718.44
A116: Beucler | B116: Eric | C116: Différence | D116: 758 | E116: 0.5 | F116: 379 | G116: 60.64 | H116: 439.64 | I116: 615.5 | J116: 640.79 | K116: 556.48
A117: Cance | B117: Philippe | C117: Différence | D117: 397 | E117: 0.68 | F117: 269.96 | G117: 43.1936 | H117: 313.15 | I117: 322.36 | J117: 333.88 | K117: 351.15
A118: Lambertucci | B118: Virginie | C118: Initiale | D118: 454 | E118: 0.71 | F118: 322.34 | G118: 51.5744 | H118: 373.91 | I118: 321.25 | J118: 336.31 | K118: 291.13
A119: Verhoeven | B119: Olivier | C119: Initiale | D119: 624 | E119: 0.96 | F119: 599.04 | G119: 95.8464 | H119: 694.89 | I119: 441.54 | J119: 0 | K119: 482.94
A120: Cariou-Lacombe | B120: Elsa | C120: Initiale | D120: 940 | E120: 1.19 | F120: 1118.6 | G120: 178.976 | H120: 1297.58 | I120: 719.66 | J120: 750.95 | K120: 594.51
A121: Brehier | B121: Marie-Claire | C121: Plénitude | D121: 819 | E121: 0.5 | F121: 409.5 | G121: 65.52 | H121: 475.02 | I121: 779.03 | J121: 811.95 | K121: 844.87
A122: Carrere | B122: Veronique | C122: Initiale | D122: 438 | E122: 0.74 | F122: 324.12 | G122: 51.8592 | H122: 375.98 | I122: 370.9 | J122: 317.91 | K122: 329.69
A123: Le-Mouelic | B123: Stephane | C123: Plénitude | D123: 449 | E123: 0.73 | F123: 327.77 | G123: 52.4432 | H123: 380.21 | I123: 437.51 | J123: 457.39 | K123: 362.93
A124: Morel | B124: Gaetan | C124: Initiale | D124: 436 | E124: 2.73 | F124: 1190.28 | G124: 190.4448 | H124: 1380.72 | I124: 379.32 | J124: 398.77 | K124: 316.1
A125: Lepape | B125: Adeline | C125: Initiale | D125: 406 | E125: 2.24 | F125: 909.44 | G125: 145.5104 | H125: 1054.95 | I125: 480.38 | J125: 502.83 | K125: 435.48
A126: Manga | B126: Daniel | C126: Plénitude | D126: 396 | E126: 0.53 | F126: 209.88 | G126: 33.5808 | H126: 243.46 | I126: 385.86 | J126: 306.94 | K126: 320.09
A127: Bonnin | B127: Mickael | C127: Initiale | D127: 1838 | E127: 2.55 | F127: 4686.9 | G127: 749.904 | H127: 5436.8 | I127: 1343.21 | J127: 1243.71 | K127: 1293.46
A128: Mangold | B128: Nicolas | C128: Plénitude | D128: 598 | E128: 0.52 | F128: 310.96 | G128: 49.7536 | H128: 360.71 | I128: 520.26 | J128: 413.54 | K128: 433.55
A129: Mitri | B129: Guiseppe | C129: Essentiel | D129: 1503 | E129: 0.5 | F129: 751.5 | G129: 120.24 | H129: 871.74 | I129: 1290.18 | J129: 1355.78 | K129: 1421.38
A130: Parroco | B130: Sophie | C130: Initiale | D130: 1624 | E130: 2.62 | F130: 4254.88 | G130: 680.7808 | H130: 4935.66 | I130: 1054.95 | J130: 1109.52 | K130: 964.01
A131: Mbeme-Otsagha | B131: Franck | C131: Initiale | D131: 1340 | E131: 2.51 | F131: 3363.4 | G131: 538.144 | H131: 3901.54 | I131: 823.83 | J131: 853.79 | K131: 748.94
A132: Saintagne | B132: Guillaume | C132: Initiale | D132: 422 | E132: 1.73 | F132: 730.06 | G132: 116.8096 | H132: 846.87 | I132: 318.19 | J132: 276.07 | K132: 0
A133: Tobie | B133: Gabriel | C133: Initiale | D133: 454 | E133: 0.57 | F133: 258.78 | G133: 41.4048 | H133: 300.18 | I133: 384.45 | J133: 331.42 | K133: 344.68
A134: Ansan | B134: Veronique | C134: Plénitude | D134: 772 | E134: 0.88 | F134: 679.36 | G134: 108.6976 | H134: 788.06 | I134: 447.76 | J134: 464.98 | K134: 430.54
A135: Nna-Mvondo | B135: Delphine | C135: Initiale | D135: 426 | E135: 0.72 | F135: 306.72 | G135: =F135*0.16 -> 49.0752 | H135: =ROUND(F135+G135,2) -> 355.8 | I135: 247.08 | J135: 256.96 | K135: 247.08
A136: Laigle | B136: Idaline | C136: Initiale | D136: 1007 | E136: 0.5 | F136: =D136*E136 -> 503.5 | G136: 80.56 | H136: 584.06 | I136: 712.55 | J136: 712.55 | K136: 712.55
A137: Bahon | B137: Vianney | C137: Plénitude | D137: 1066 | E137: 0.5 | F137: 533 | G137: 85.28 | H137: 618.28 | I137: 618.28 | J137: 618.28 | K137: 618.28
A138: Cassu | B138: Marion | C138: Initiale | D138: 795 | E138: 0.97 | F138: 771.15 | G138: 123.384 | H138: 894.53 | I138: 617.87 | J138: 649.83 | K138: 681.79
A139: Choblet | B139: Gael | C139: Essentiel | D139: 1070 | E139: 0.5 | F139: 535 | G139: 85.6 | H139: 620.6 | I139: 633.01 | J139: 656.9 | K139: 597.18
A140: Jouaux | B140: Clement | C140: Essentiel | D140: 679 | E140: 0.69 | F140: 468.51 | G140: 74.9616 | H140: 543.47 | I140: 551.35 | J140: 574.01 | K140: 498.48
A141: Combaz | B141: David | C141: Plénitude | D141: 810 | E141: 2.55 | F141: 2065.5 | G141: 330.48 | H141: 2395.98 | I141: 685.91 | J141: 541.51 | K141: 469.31
A142: Douarin | B142: Melanie | C142: Essentiel | D142: 436 | E142: 0.64 | F142: 279.04 | G142: 44.6464 | H142: 323.69 | I142: 313.57 | J142: 295.82 | K142: 295.82
A143: Huon | B143: Alice | C143: Initiale | D143: 437 | E143: 2.63 | F143: 1149.31 | G143: 183.8896 | H143: 1333.2 | I143: 253.46 | J143: 263.21 | K143: 243.71
A144: Chazalet | B144: Melanie | C144: Initiale | D144: 490 | E144: 0.58 | F144: 284.2 | G144: 45.472 | H144: 329.67 | I144: 437.67 | J144: 457.56 | K144: 477.46
A145: Schweizer | B145: Magali | C145: Différence | D145: 445 | E145: 0.68 | F145: 302.6 | G145: 48.416 | H145: 351.02 | I145: 392.31 | J145: 313.85 | K145: 250.1
A146: Gianesello | B146: Lucas | C146: Initiale | D146: 414 | E146: 0.73 | F146: 302.22 | G146: 48.3552 | H146: 350.58 | I146: 485.04 | J146: 507.92 | K146: 530.8
A147: Pecheul | B147: Leo | C147: Différence | D147: 1666 | E147: 0.5 | F147: 833 | G147: 133.28 | H147: 966.28 | I147: 1565.37 | J147: 1638.75 | K147: 1712.13
A148: Bourgeois | B148: Olivier | C148: Plénitude | D148: 431 | E148: 0.73 | F148: 314.63 | G148: 50.3408 | H148: 364.97 | I148: 329.97 | J148: 317.28 | K148: 329.97
A149: Howa | B149: Helene | C149: Essentiel | D149: 432 | E149: 0.55 | F149: 237.6 | G149: 38.016 | H149: 275.62 | I149: 305.68 | J149: 262.7 | K149: 272.25
A150: Barras | B150: Christine | C150: Essentiel | D150: 409 | E150: 0.56 | F150: 229.04 | G150: 36.6464 | H150: 265.69 | I150: 403.27 | J150: 321.71 | K150: 335.31
A151: La- | B151: Carole | C151: Essentiel | D151: 474 | E151: 0.6 | F151: 284.4 | G151: 45.504 | H151: 329.9 | I151: 307.91 | J151: 323.84 | K151: 281.37
A152: Baron | B152: Frederic | C152: Essentiel | D152: 440 | E152: 0.6 | F152: 264 | G152: 42.24 | H152: 306.24 | I152: 336.86 | J152: 351.51 | K152: 366.16
A153: Maubourguet | B153: Sylvie | C153: Initiale | D153: 438 | E153: 0.98 | F153: 429.24 | G153: 68.6784 | H153: 497.92 | I153: 274.36 | J153: 284.16 | K153: 298.86
A154: Gaudin | B154: Anne | C154: Essentiel | D154: 401 | E154: 0.57 | F154: 228.57 | G154: 36.5712 | H154: 265.14 | I154: 232.58 | J154: 241.53 | K154: 223.63
A155: Khac | B155: Emmanuelle | C155: Initiale | D155: 703 | E155: 0.8 | F155: 562.4 | G155: 89.984 | H155: 652.38 | I155: 489.29 | J155: 512.59 | K155: 403.86
A156: Monnier | B156: Christophe | C156: Essentiel | D156: 1434 | E156: 2.28 | F156: 3269.52 | G156: 523.1232 | H156: 3792.64 | I156: 1014.7 | J156: 1062.26 | K156: 840.3
A157: Rondeau | B157: Benjamin | C157: Essentiel | D157: 419 | E157: 0.66 | F157: 276.54 | G157: 44.2464 | H157: 320.79 | I157: 447.16 | J157: 354 | K157: 279.47
A158: Giraud | B158: Manuel | C158: Différence | D158: 921 | E158: 0.5 | F158: 460.5 | G158: 73.68 | H158: 534.18 | I158: 641.02 | J158: 641.02 | K158: 666.66
A159: Mouret | B159: Aurelia | C159: Initiale | D159: 987 | E159: 0.5 | F159: 493.5 | G159: 78.96 | H159: 572.46 | I159: 732.75 | J159: 759.39 | K159: 799.36
A160: Nardelli | B160: Maria-Pia | C160: Initiale | D160: 447 | E160: 1.82 | F160: 813.54 | G160: 130.1664 | H160: 943.71 | I160: 274.82 | J160: 285.81 | K160: 296.8
A161: Drieux | B161: Helene | C161: Différence | D161: 771 | E161: 0.65 | F161: 501.15 | G161: 80.184 | H161: 581.33 | I161: 724.43 | J161: 0 | K161: 0
A162: Mege | B162: Daniel | C162: Plénitude | D162: 444 | E162: 2.26 | F162: 1003.44 | G162: 160.5504 | H162: 1163.99 | I162: 530.49 | J162: 456.81 | K162: 0
A163: Sandrine | B163: Cavalli | C163: Essentiel | D163: 868 | E163: 0.82 | F163: 711.76 | G163: 113.8816 | H163: 825.64 | I163: 815.57 | J163: 853.8 | K163: 892.03
A164: Wafa | B164: Pozos-Baez | C164: Essentiel | D164: 639 | E164: 0.94 | F164: 600.66 | G164: 96.1056 | H164: 696.77 | I164: 400.27 | J164: 416.28 | K164: 400.27
A165: Adeline | B165: Prevost | C165: Différence | D165: 456 | E165: 2.41 | F165: 1098.96 | G165: 175.8336 | H165: 1274.79 | I165: 306.8 | J165: 306.8 | K165: 319.07
A166: Céline | B166: Augras | C166: Initiale | D166: 457 | E166: 0.58 | F166: 265.06 | G166: 42.4096 | H166: 307.47 | I166: 429.4 | J166: 368.78 | K166: 383.93
A167: Veronique | B167: Domine | C167: Différence | D167: 438 | E167: 1.39 | F167: 608.82 | G167: 97.4112 | H167: 706.23 | I167: 304.85 | J167: 261.3 | K167: 241.94
A168: Janine | B168: Heath | C168: Essentiel | D168: 653 | E168: 0.98 | F168: 639.94 | G168: 102.3904 | H168: 742.33 | I168: 409.04 | J168: 365.21 | K168: 365.21
A169: Thierry | B169: Guerin | C169: Plénitude | D169: 415 | E169: 0.55 | F169: 228.25 | G169: 36.52 | H169: 264.77 | I169: 250.33 | J169: 231.79 | K169: 241.06
A170: Olivia | B170: Garrec | C170: Essentiel | D170: 453 | E170: 0.55 | F170: 249.15 | G170: 39.864 | H170: 289.01 | I170: 488.7 | J170: 513.89 | K170: 443.35
A171: Isabelle | B171: Du | C171: Essentiel | D171: 1849 | E171: 0.5 | F171: 924.5 | G171: 147.92 | H171: 1072.42 | I171: 2209.19 | J171: 2316.95 | K171: 2424.72
A172: Federica | B172: Mavier | C172: Initiale | D172: 1017 | E172: 0.5 | F172: 508.5 | G172: 81.36 | H172: 589.86 | I172: 872.99 | J172: 913.91 | K172: 954.84
A173: Caroline | B173: De-Samucewicz | C173: Différence | D173: 419 | E173: 0.72 | F173: 301.68 | G173: 48.2688 | H173: 349.95 | I173: 349.95 | J173: 279.96 | K173: 242.63
A174: Adeline | B174: Guerin | C174: Différence | D174: 405 | E174: 0.53 | F174: 214.65 | G174: 34.344 | H174: 248.99 | I174: 371.14 | J174: 294.73 | K174: 272.9
A175: Emilie | B175: Louvel | C175: Initiale | D175: 399 | E175: 0.61 | F175: 243.39 | G175: 38.9424 | H175: 282.33 | I175: 240.68 | J175: 250.3 | K175: 240.68
A176: Saidat | B176: Arrondell | C176: Initiale | D176: 1584 | E176: 1.56 | F176: 2471.04 | G176: 395.3664 | H176: 2866.41 | I176: 1028.97 | J176: 1082.19 | K176: 1135.41
A177: Corine | B177: Muller | C177: Essentiel | D177: 695 | E177: 0.5 | F177: 347.5 | G177: 55.6 | H177: 403.1 | I177: 403.1 | J177: 419.22 | K177: 403.1
A178: Valentin | B178: Marillat | C178: Différence | D178: 438 | E178: 0.51 | F178: 223.38 | G178: 35.7408 | H178: 259.12 | I178: 482.68 | J178: 415.1 | K178: 434.41
A179: Bridget | B179: Lamrani | C179: Essentiel | D179: 456 | E179: 3.02 | F179: 1377.12 | G179: 220.3392 | H179: 1597.46 | I179: 555.41 | J179: 479.67 | K179: 414.03
A180: Céline | B180: Burguiere | C180: Plénitude | D180: 403 | E180: 0.99 | F180: 398.97 | G180: 63.8352 | H180: 462.81 | I180: 243.09 | J180: 225.08 | K180: 225.08
A181: Ghislaine | B181: Mineau | C181: Initiale | D181: 388 | E181: 1.61 | F181: 624.68 | G181: 99.9488 | H181: 724.63 | I181: 225.04 | J181: 225.04 | K181: 225.04
A182: Blandine | B182: Gnagi | C182: Plénitude | D182: 608 | E182: 0.68 | F182: 413.44 | G182: 66.1504 | H182: 479.59 | I182: 514.85 | J182: 443.84 | K182: 461.59
A183: Jean-Luc | B183: Wiie | C183: Plénitude | D183: 752 | E183: 0.57 | F183: 428.64 | G183: 68.5824 | H183: 497.22 | I183: 436.16 | J183: 453.61 | K183: 471.05
A184: Arnaud | B184: Leresche | C184: Plénitude | D184: 1862 | E184: 0.5 | F184: 931 | G184: 148.96 | H184: 1079.96 | I184: 1663.14 | J184: 1744.93 | K184: 1826.73
A185: Jean-Sébastien | B185: Bermudes | C185: Initiale | D185: 449 | E185: 1.66 | F185: 745.34 | G185: 119.2544 | H185: 864.59 | I185: 302.09 | J185: 314.17 | K185: 326.25
A186: Jean-François | B186: Machaux | C186: Initiale | D186: 1982 | E186: 0.74 | F186: 1466.68 | G186: 234.6688 | H186: 1701.35 | I186: 1149.56 | J186: 1105.35 | K186: 1105.35
A187: Olivia | B187: Gasser | C187: Différence | D187: 942 | E187: 0.67 | F187: 631.14 | G187: 100.9824 | H187: 732.12 | I187: 546.36 | J187: 546.36 | K187: 0
A188: Sofian | B188: Daufresne | C188: Essentiel | D188: 799 | E188: 1.04 | F188: 830.96 | G188: 132.9536 | H188: 963.91 | I188: 463.42 | J188: 481.24 | K188: 499.07
A189: Anne | B189: Fuchs | C189: Essentiel | D189: 417 | E189: 2.4 | F189: 1000.8 | G189: 160.128 | H189: 1160.93 | I189: 251.53 | J189: 261.6 | K189: 251.53
A190: Martine | B190: Iacarelli | C190: Différence | D190: 980 | E190: 0.67 | F190: 656.6 | G190: 105.056 | H190: 761.66 | I190: 568.4 | J190: 546.54 | K190: 546.54
A191: Malvina | B191: Etchart | C191: Plénitude | D191: 976 | E191: 0.77 | F191: 751.52 | G191: 120.2432 | H191: 871.76 | I191: 566.08 | J191: 566.08 | K191: 566.08
A192: Warwick | B192: Abt | C192: Initiale | D192: 442 | E192: 2.59 | F192: 1144.78 | G192: 183.1648 | H192: 1327.94 | I192: 266.61 | J192: 277.28 | K192: 266.61
A193: Colombe | B193: Cuomo | C193: Initiale | D193: 387 | E193: 0.75 | F193: 290.25 | G193: 46.44 | H193: 336.69 | I193: 233.44 | J193: 242.08 | K193: 216.15
A194: Jean-Pierre | B194: Joucla | C194: Essentiel | D194: 1960 | E194: 0.5 | F194: 980 | G194: 156.8 | H194: 1136.8 | I194: 1136.8 | J194: 1180.52 | K194: 1224.25
A195: Anika | B195: Petit | C195: Essentiel | D195: 1981 | E195: 2.69 | F195: 5328.89 | G195: 852.6224 | H195: 6181.51 | I195: 1194.94 | J195: 1239.2 | K195: 1283.45
A196: Bernard | B196: Delpippo | C196: Plénitude | D196: 1338 | E196: 1.82 | F196: 2435.16 | G196: 389.6256 | H196: 2824.79 | I196: 776.04 | J196: 776.04 | K196: 776.04
A197: Deborah | B197: Hannequin | C197: Initiale | D197: 417 | E197: 1.89 | F197: 788.13 | G197: 126.1008 | H197: 914.23 | I197: 251.53 | J197: 261.6 | K197: 271.66
A198: Kesh | B198: De-Goue | C198: Essentiel | D198: 404 | E198: 3.3 | F198: 1333.2 | G198: 213.312 | H198: 1546.51 | I198: 243.69 | J198: 253.44 | K198: 243.69
A199: Valérie | B199: Liegeois | C199: Initiale | D199: 884 | E199: 0.5 | F199: 442 | G199: =F199*0.16 -> 70.72 | H199: =ROUND(F199+G199,2) -> 512.72 | I199: 533.23 | J199: 493.73 | K199: 513.48
A200: Valérie | B200: Rimsky-Korsakoff | C200: Différence | D200: 430 | E200: 0.6 | F200: =D200*E200 -> 258 | G200: 41.28 | H200: 299.28 | I200: 249.4 | J200: 258.99 | K200: 268.58
A201: Cédric | B201: Fontaine | C201: Plénitude | D201: 783 | E201: 0.97 | F201: 759.51 | G201: 121.5216 | H201: 881.03 | I201: 472.31 | J201: 437.32 | K201: 454.81
... 176 more rows

Sheet tableauDeBord
A1: Statistiques sur la mise en place de la tarification jeune conducteur
A4: évolution de la répartition des primes par type de contrat
B5: 2019 | C5: 2018 | D5: 2017 | E5: 2016
A6: Initiale | B6: =SUMIFS(etatDesPrimes!H$6:H$377,etatDesPrimes!$C$6:$C$377,tableauDeBord!$A6) -> 127792.18 | C6: =SUMIFS(etatDesPrimes!I$6:I$377,etatDesPrimes!$C$6:$C$377,tableauDeBord!$A6) -> 111880.84 | D6: =SUMIFS(etatDesPrimes!J$6:J$377,etatDesPrimes!$C$6:$C$377,tableauDeBord!$A6) -> 103458.6 | E6: =SUMIFS(etatDesPrimes!K$6:K$377,etatDesPrimes!$C$6:$C$377,tableauDeBord!$A6) -> 95961.4
A7: Essentiel | B7: =SUMIFS(etatDesPrimes!H$6:H$377,etatDesPrimes!$C$6:$C$377,tableauDeBord!$A7) -> 87269.28 | C7: =SUMIFS(etatDesPrimes!I$6:I$377,etatDesPrimes!$C$6:$C$377,tableauDeBord!$A7) -> 64281.28 | D7: =SUMIFS(etatDesPrimes!J$6:J$377,etatDesPrimes!$C$6:$C$377,tableauDeBord!$A7) -> 58364.9 | E7: =SUMIFS(etatDesPrimes!K$6:K$377,etatDesPrimes!$C$6:$C$377,tableauDeBord!$A7) -> 52450.19
A8: Différence | B8: =SUMIFS(etatDesPrimes!H$6:H$377,etatDesPrimes!$C$6:$C$377,tableauDeBord!$A8) -> 72278.92 | C8: =SUMIFS(etatDesPrimes!I$6:I$377,etatDesPrimes!$C$6:$C$377,tableauDeBord!$A8) -> 85204.06 | D8: =SUMIFS(etatDesPrimes!J$6:J$377,etatDesPrimes!$C$6:$C$377,tableauDeBord!$A8) -> 80090.58 | E8: =SUMIFS(etatDesPrimes!K$6:K$377,etatDesPrimes!$C$6:$C$377,tableauDeBord!$A8) -> 74393.91
A9: Plénitude | B9: =SUMIFS(etatDesPrimes!H$6:H$377,etatDesPrimes!$C$6:$C$377,tableauDeBord!$A9) -> 58769.33 | C9: =SUMIFS(etatDesPrimes!I$6:I$377,etatDesPrimes!$C$6:$C$377,tableauDeBord!$A9) -> 58072.04 | D9: =SUMIFS(etatDesPrimes!J$6:J$377,etatDesPrimes!$C$6:$C$377,tableauDeBord!$A9) -> 56305.84 | E9: =SUMIFS(etatDesPrimes!K$6:K$377,etatDesPrimes!$C$6:$C$377,tableauDeBord!$A9) -> 48817.97
A10: Total primes | B10: =SUM(B6:B9) -> 346109.71 | C10: =SUM(C6:C9) -> 319438.22 | D10: 298219.92 | E10: 271623.47

Sheet jeuneConducteur
A1: Mise en place de la tarification jeune conducteur
A3: Année | B3: 2019
I4: Sinistres | J4: Surprime
A5: nom | B5: prénom | C5: Type contrat | D5: Prime de base | E5: Année du permis | F5: 1er contrat (O/N) | G5: Formation anticipée (O/N) | H5: Année ouverture contrat | I5: 2018 | J5: 2018 | K5: =B3 -> 2019
A6: Lamiaux | B6: Karine | C6: Essentiel | D6: 500 | E6: 2016 | F6: O | G6: n | H6: 2018 | I6: 0 | J6: =surprime($D6,$G6,J$5,$H6) -> 1000 | K6: =surprime(D6,G6,K$5,$H6,I6) -> 750
A7: Brossillon | B7: Frederique | C7: Différence | D7: 869 | E7: 2016 | F7: O | G7: O | H7: 2018 | I7: 0 | J7: =surprime($D7,$G7,J$5,$H7) -> 1303.5 | K7: =surprime(D7,G7,K$5,$H7,I7) -> 1086.25
A8: Barat | B8: René | C8: Essentiel | D8: 765 | E8: 2017 | F8: O | G8: N | H8: 2018 | I8: 1 | J8: 1530 | K8: 1530
A9: Faure | B9: Colette | C9: Initiale | D9: 638 | E9: 2019 | F9: O | G9: O | H9: 2019 | I9: 0 | J9: 0 | K9: 957
A10: Longeat | B10: Carine | C10: Différence | D10: 541 | E10: 2017 | F10: O | G10: O | H10: 2019 | I10: 0 | J10: 0 | K10: 811.5
A11: Durupt | B11: Marie Laure | C11: Plénitude | D11: 590 | E11: 2017 | F11: N | G11: O | H11: 2018 | I11: 0 | J11: 885 | K11: 737.5
A12: Meneroud | B12: Yann | C12: Différence | D12: 563 | E12: 2018 | F12: O | G12: N | H12: 2018 | I12: 0 | J12: 1126 | K12: 844.5
A13: Emeric | B13: Michel | C13: Essentiel | D13: 571 | E13: 2016 | F13: O | G13: O | H13: 2018 | I13: 0 | J13: 856.5 | K13: 713.75
A14: Fehmi | B14: Chakib | C14: Initiale | D14: 506 | E14: 2017 | F14: O | G14: O | H14: 2018 | I14: 1 | J14: 759 | K14: 759
A15: Ferre | B15: Emmanuel | C15: Initiale | D15: 754 | E15: 2019 | F15: O | G15: O | H15: 2019 | I15: 0 | J15: 0 | K15: 1131
A16: Miler | B16: Gloria | C16: Initiale | D16: 938 | E16: 2016 | F16: O | G16: O | H16: 2018 | I16: 0 | J16: 1407 | K16: 1172.5
A17: Rigaud | B17: Jean francois | C17: Différence | D17: 564 | E17: 2019 | F17: O | G17: O | H17: 2018 | I17: 0 | J17: 846 | K17: 705
A18: Gelpe | B18: Martine | C18: Essentiel | D18: 700.6 | E18: 2018 | F18: N | G18: O | H18: 2018 | I18: 0 | J18: 1050.9 | K18: 875.75
A19: Perrault | B19: Christine | C19: Plénitude | D19: 1665.4 | E19: 2016 | F19: O | G19: N | H19: 2018 | I19: 0 | J19: 3330.8 | K19: 2498.1
A20: Genest | B20: Marie therese | C20: Initiale | D20: 832 | E20: 2016 | F20: O | G20: O | H20: 2018 | I20: 0 | J20: 1248 | K20: 1040
A21: Baba | B21: Martine | C21: Différence | D21: 1300.25 | E21: 2016 | F21: O | G21: O | H21: 2018 | I21: 0 | J21: 1950.375 | K21: 1625.3125
A22: Barat | B22: Nicole | C22: Initiale | D22: 833 | E22: 2018 | F22: O | G22: O | H22: 2018 | I22: 0 | J22: 1249.5 | K22: 1041.25
A23: Coste | B23: Laurent | C23: Différence | D23: 1389.5 | E23: 2017 | F23: O | G23: N | H23: 2018 | I23: 0 | J23: 2779 | K23: 2084.25
A24: Meyer | B24: Denis | C24: Initiale | D24: 572 | E24: 2019 | F24: O | G24: O | H24: 2019 | I24: 0 | J24: 0 | K24: 858
A25: Chanac | B25: Sylvie | C25: Essentiel | D25: 672.08 | E25: 2016 | F25: O | G25: O | H25: 2018 | I25: 0 | J25: 1008.12 | K25: 840.1
A26: Marquette | B26: Lucien | C26: Essentiel | D26: 872.96 | E26: 2018 | F26: O | G26: N | H26: 2018 | I26: 0 | J26: 1745.92 | K26: 1309.44
A27: Masina | B27: Mohamed | C27: Différence | D27: 889 | E27: 2016 | F27: O | G27: O | H27: 2018 | I27: 0 | J27: 1333.5 | K27: 1111.25
A28: Verdier | B28: Philippe | C28: Différence | D28: 894.25 | E28: 2016 | F28: O | G28: O | H28: 2018 | I28: 0 | J28: 1341.375 | K28: 1117.8125
A29: Foulon | B29: Monique | C29: Initiale | D29: 716 | E29: 2017 | F29: O | G29: O | H29: 2018 | I29: 0 | J29: 1074 | K29: 895
A30: Del cuerpo | B30: Daniele | C30: Initiale | D30: 927 | E30: 2018 | F30: O | G30: O | H30: 2018 | I30: 0 | J30: 1390.5 | K30: 1158.75
A31: Catala | B31: Carole | C31: Initiale | D31: 922 | E31: 2018 | F31: O | G31: O | H31: 2018 | I31: 0 | J31: 1383 | K31: 1152.5
A32: Dierstein | B32: Anna | C32: Plénitude | D32: 2087.8 | E32: 2018 | F32: O | G32: O | H32: 2018 | I32: 1 | J32: 3131.7 | K32: 3131.7
A33: Le morvan | B33: Pascale | C33: Initiale | D33: 891 | E33: 2016 | F33: O | G33: O | H33: 2018 | I33: 0 | J33: 1336.5 | K33: 1113.75
A34: Polidori | B34: Francoise | C34: Différence | D34: 1557.5 | E34: 2016 | F34: O | G34: O | H34: 2018 | I34: 0 | J34: 2336.25 | K34: 1946.875
A35: Blanc | B35: Marie therese | C35: Initiale | D35: 588 | E35: 2018 | F35: O | G35: O | H35: 2018 | I35: 0 | J35: 882 | K35: 735
A36: Tardy | B36: Jean michel | C36: Essentiel | D36: 815.92 | E36: 2016 | F36: O | G36: N | H36: 2018 | I36: 0 | J36: 1631.84 | K36: 1223.88
A37: Enger | B37: Michel | C37: Plénitude | D37: 1940.4 | E37: 2018 | F37: O | G37: O | H37: 2018 | I37: 0 | J37: 2910.6 | K37: 2425.5
A38: Badefort | B38: Elmostafa | C38: Plénitude | D38: 1218.8 | E38: 2016 | F38: O | G38: O | H38: 2018 | I38: 0 | J38: 1828.2 | K38: 1523.5
A39: Herviou | B39: Anne | C39: Plénitude | D39: 1326.6 | E39: 2017 | F39: O | G39: N | H39: 2018 | I39: 0 | J39: 2653.2 | K39: 1989.9
A40: Trassoudaine | B40: Thi thu huong | C40: Différence | D40: 973 | E40: 2016 | F40: O | G40: O | H40: 2018 | I40: 0 | J40: 1459.5 | K40: 1216.25
A41: Samkawi | B41: Sylvia | C41: Essentiel | D41: 1147 | E41: 2016 | F41: O | G41: O | H41: 2018 | I41: 0 | J41: 1720.5 | K41: 1433.75
A42: Parazols | B42: Raymond | C42: Essentiel | D42: 696.88 | E42: 2018 | F42: O | G42: O | H42: 2018 | I42: 0 | J42: 1045.32 | K42: 871.1
A43: Gaillard | B43: Michele | C43: Différence | D43: 1055.25 | E43: 2018 | F43: O | G43: O | H43: 2018 | I43: 0 | J43: 1582.875 | K43: 1319.0625
A44: Martory | B44: Christiane | C44: Initiale | D44: 928 | E44: 2016 | F44: O | G44: N | H44: 2018 | I44: 0 | J44: 1856 | K44: 1392
A45: Seffar | B45: Bernadette | C45: Différence | D45: 1352.75 | E45: 2019 | F45: O | G45: N | H45: 2019 | I45: 0 | J45: 0 | K45: 2705.5
A46: Talbart | B46: Stephane | C46: Initiale | D46: 798 | E46: 2018 | F46: N | G46: O | H46: 2018 | I46: 0 | J46: 1197 | K46: 997.5
A47: Pasquereau | B47: Jean luc | C47: Essentiel | D47: 620 | E47: 2017 | F47: O | G47: O | H47: 2018 | I47: 0 | J47: 930 | K47: 775
A48: Poire | B48: Thierry | C48: Initiale | D48: 945 | E48: 2017 | F48: O | G48: O | H48: 2018 | I48: 1 | J48: 1417.5 | K48: 1417.5
A49: Melloul | B49: Pascale | C49: Différence | D49: 955.5 | E49: 2016 | F49: O | G49: O | H49: 2018 | I49: 0 | J49: 1433.25 | K49: 1194.375
A50: Cherubin | B50: Anna | C50: Initiale | D50: 776 | E50: 2016 | F50: O | G50: O | H50: 2018 | I50: 0 | J50: 1164 | K50: 970
A51: Sardi | B51: Robert | C51: Initiale | D51: 915 | E51: 2018 | F51: O | G51: O | H51: 2018 | I51: 0 | J51: 1372.5 | K51: 1143.75
A52: Departout | B52: Francois | C52: Essentiel | D52: 716.72 | E52: 2016 | F52: O | G52: N | H52: 2018 | I52: 0 | J52: 1433.44 | K52: 1075.08
A53: Decourtray | B53: Annick | C53: Initiale | D53: 684 | E53: 2016 | F53: O | G53: O | H53: 2018 | I53: 1 | J53: 1026 | K53: 1026
A54: Gosselet | B54: Bernard | C54: Essentiel | D54: 947.36 | E54: 2018 | F54: N | G54: O | H54: 2018 | I54: 0 | J54: 1421.04 | K54: 1184.2
A55: Plegues | B55: Nicole | C55: Différence | D55: 1400 | E55: 2019 | F55: O | G55: N | H55: 2019 | I55: 0 | J55: 0 | K55: 2800
A56: Thune | B56: Sylvie | C56: Essentiel | D56: 1050.28 | E56: 2016 | F56: O | G56: N | H56: 2018 | I56: 1 | J56: 2100.56 | K56: 2100.56
A57: Bigarre | B57: Nicole | C57: Plénitude | D57: 1232 | E57: 2016 | F57: O | G57: N | H57: 2018 | I57: 1 | J57: 2464 | K57: 2464
A58: Thoisy | B58: Helene | C58: Initiale | D58: 873 | E58: 2019 | F58: O | G58: N | H58: 2019 | I58: 0 | J58: 0 | K58: 1746
A59: De simone | B59: Micheline | C59: Plénitude | D59: 1161.6 | E59: 2016 | F59: O | G59: O | H59: 2018 | I59: 1 | J59: 1742.4 | K59: 1742.4
A60: Bensimon | B60: Said | C60: Initiale | D60: 564 | E60: 2019 | F60: O | G60: N | H60: 2019 | I60: 0 | J60: 0 | K60: 1128
A61: Jaboin | B61: Mahmoud | C61: Plénitude | D61: 2090 | E61: 2017 | F61: O | G61: O | H61: 2018 | I61: 0 | J61: 3135 | K61: 2612.5
A62: Badda | B62: Djelil | C62: Initiale | D62: 873 | E62: 2016 | F62: N | G62: O | H62: 2018 | I62: 0 | J62: 1309.5 | K62: 1091.25
A63: Lenoir | B63: Françoise | C63: Initiale | D63: 770 | E63: 2016 | F63: O | G63: O | H63: 2018 | I63: 1 | J63: 1155 | K63: 1155
A64: Bouland | B64: Agnes | C64: Initiale | D64: 608 | E64: 2018 | F64: O | G64: N | H64: 2018 | I64: 0 | J64: 1216 | K64: 912
A65: Pico | B65: Simon françois | C65: Essentiel | D65: 1168.08 | E65: 2017 | F65: O | G65: O | H65: 2018 | I65: 0 | J65: 1752.12 | K65: 1460.1
A66: Pau | B66: Marie paule | C66: Essentiel | D66: 974.64 | E66: 2016 | F66: O | G66: O | H66: 2018 | I66: 0 | J66: 1461.96 | K66: 1218.3
A67: Juntas | B67: Yves | C67: Essentiel | D67: 835.76 | E67: 2016 | F67: O | G67: O | H67: 2018 | I67: 1 | J67: 1253.64 | K67: 1253.64
A68: Jonon | B68: Sophie | C68: Différence | D68: 1279.25 | E68: 2019 | F68: N | G68: O | H68: 2019 | I68: 0 | J68: 0 | K68: 1918.875
A69: Meneroud | B69: Bernard | C69: Différence | D69: 1163.75 | E69: 2017 | F69: O | G69: N | H69: 2018 | I69: 1 | J69: 2327.5 | K69: 2327.5
A70: Marcel | B70: Anne marie | C70: Essentiel | D70: 741.52 | E70: 2017 | F70: N | G70: O | H70: 2018 | I70: 1 | J70: 1112.28 | K70: 1112.28
A71: Cron | B71: Philippe | C71: Plénitude | D71: 1135.2 | E71: 2016 | F71: O | G71: N | H71: 2018 | I71: 0 | J71: =surprime($D71,$G71,J$5,$H71) -> 2270.4 | K71: =surprime(D71,G71,K$5,$H71,I71) -> 1702.8
A72: Edme | B72: Marie Laur | C72: Plénitude | D72: 2013 | E72: 2017 | F72: O | G72: O | H72: 2018 | I72: 0 | J72: 3019.5 | K72: 2516.25
A73: Piquerez | B73: Michele | C73: Initiale | D73: 848 | E73: 2018 | F73: O | G73: N | H73: 2018 | I73: 0 | J73: 1696 | K73: 1272
A74: Le dirach | B74: Fabienne | C74: Plénitude | D74: 1742.4 | E74: 2016 | F74: O | G74: O | H74: 2018 | I74: 0 | J74: 2613.6 | K74: 2178
A75: Tomeo | B75: Daniele | C75: Différence | D75: 1417.5 | E75: 2017 | F75: O | G75: N | H75: 2018 | I75: 0 | J75: 2835 | K75: 2126.25
A76: Rakotoarivony | B76: Marie pierre | C76: Différence | D76: 936.25 | E76: 2016 | F76: O | G76: N | H76: 2018 | I76: 0 | J76: 1872.5 | K76: 1404.375
A77: Bonati | B77: Claire | C77: Différence | D77: 1359.75 | E77: 2017 | F77: O | G77: O | H77: 2018 | I77: 0 | J77: 2039.625 | K77: 1699.6875
A78: Couturier | B78: Francoise | C78: Différence | D78: 1295 | E78: 2019 | F78: O | G78: O | H78: 2019 | I78: 0 | J78: 0 | K78: 1942.5
A79: Kessari | B79: Fabienne | C79: Plénitude | D79: 1537.8 | E79: 2018 | F79: N | G79: O | H79: 2018 | I79: 0 | J79: 2306.7 | K79: 1922.25
A80: Draux | B80: Veronique | C80: Plénitude | D80: 1430 | E80: 2016 | F80: O | G80: O | H80: 2018 | I80: 0 | J80: 2145 | K80: 1787.5
A81: Bory | B81: Jean louis | C81: Initiale | D81: 817 | E81: 2017 | F81: O | G81: O | H81: 2018 | I81: 1 | J81: 1225.5 | K81: 1225.5
A82: Monnet | B82: Claire lise | C82: Différence | D82: 1566.25 | E82: 2016 | F82: O | G82: O | H82: 2018 | I82: 1 | J82: 2349.375 | K82: 2349.375
A83: Bardin | B83: Anne | C83: Initiale | D83: 826 | E83: 2016 | F83: O | G83: O | H83: 2018 | I83: 0 | J83: 1239 | K83: 1032.5
A84: MELLOUL | B84: Bernard | C84: Essentiel | D84: 1041.6 | E84: 2017 | F84: O | G84: O | H84: 2018 | I84: 1 | J84: 1562.4 | K84: 1562.4
A85: Hugon | B85: Laurence | C85: Plénitude | D85: 1278.2 | E85: 2016 | F85: O | G85: O | H85: 2018 | I85: 0 | J85: 1917.3 | K85: 1597.75
A86: Richard | B86: Catherine | C86: Différence | D86: 1085 | E86: 2018 | F86: O | G86: O | H86: 2018 | I86: 0 | J86: 1627.5 | K86: 1356.25
A87: Benaiem | B87: Elisabeth | C87: Initiale | D87: 617 | E87: 2017 | F87: O | G87: O | H87: 2018 | I87: 0 | J87: 925.5 | K87: 771.25
A88: Santos | B88: Christophe | C88: Initiale | D88: 606 | E88: 2016 | F88: O | G88: O | H88: 2018 | I88: 1 | J88: 909 | K88: 909
A89: Lauer | B89: Stephane | C89: Essentiel | D89: 717.96 | E89: 2016 | F89: O | G89: O | H89: 2018 | I89: 0 | J89: 1076.94 | K89: 897.45
A90: Lestrade | B90: Daniel | C90: Initiale | D90: 521 | E90: 2016 | F90: O | G90: O | H90: 2018 | I90: 1 | J90: 781.5 | K90: 781.5
A91: Moreau | B91: Brigitte | C91: Initiale | D91: 622 | E91: 2019 | F91: O | G91: N | H91: 2019 | I91: 0 | J91: 0 | K91: 1244
A92: Durupt | B92: Francoise | C92: Initiale | D92: 710 | E92: 2018 | F92: O | G92: O | H92: 2018 | I92: 1 | J92: 1065 | K92: 1065
A93: Parmentier | B93: Annie | C93: Essentiel | D93: 1094.92 | E93: 2016 | F93: O | G93: O | H93: 2018 | I93: 0 | J93: 1642.38 | K93: 1368.65
A94: Legars | B94: Claire | C94: Essentiel | D94: 1062.68 | E94: 2018 | F94: O | G94: O | H94: 2018 | I94: 0 | J94: 1594.02 | K94: 1328.35
A95: Brahmi | B95: Anne marie | C95: Essentiel | D95: 983.32 | E95: 2017 | F95: O | G95: O | H95: 2018 | I95: 0 | J95: 1474.98 | K95: 1229.15
A96: Hourdeaux | B96: Jean jacques | C96: Initiale | D96: 754 | E96: 2016 | F96: O | G96: N | H96: 2018 | I96: 0 | J96: 1508 | K96: 1131
A97: Mao | B97: Stephanie | C97: Initiale | D97: 793 | E97: 2019 | F97: O | G97: O | H97: 2019 | I97: 0 | J97: 0 | K97: 1189.5
A98: Sigalas | B98: Musiliu | C98: Différence | D98: 1211 | E98: 2019 | F98: N | G98: O | H98: 2019 | I98: 0 | J98: 0 | K98: 1816.5
A99: Larive | B99: Dominique | C99: Initiale | D99: 646 | E99: 2016 | F99: O | G99: O | H99: 2018 | I99: 1 | J99: 969 | K99: 969
A100: Poncelet | B100: Natacha | C100: Initiale | D100: 675 | E100: 2018 | F100: O | G100: N | H100: 2018 | I100: 0 | J100: 1350 | K100: 1012.5
A101: Hiault | B101: Jean marc | C101: Initiale | D101: 634 | E101: 2018 | F101: O | G101: O | H101: 2018 | I101: 0 | J101: 951 | K101: 792.5
A102: Vujisic | B102: Christine | C102: Différence | D102: 1354.5 | E102: 2016 | F102: N | G102: O | H102: 2018 | I102: 0 | J102: 2031.75 | K102: 1693.125
A103: Wos | B103: Claude | C103: Différence | D103: 1149.75 | E103: 2016 | F103: O | G103: O | H103: 2018 | I103: 0 | J103: 1724.625 | K103: 1437.1875
A104: Sebbar | B104: Ouiza | C104: Initiale | D104: 512 | E104: 2016 | F104: O | G104: O | H104: 2018 | I104: 0 | J104: 768 | K104: 640
A105: Rosenfeld | B105: Pascal | C105: Initiale | D105: 901 | E105: 2019 | F105: O | G105: O | H105: 2019 | I105: 0 | J105: 0 | K105: 1351.5
A106: Nguyen | B106: Elisabeth | C106: Initiale | D106: 566 | E106: 2018 | F106: O | G106: O | H106: 2018 | I106: 1 | J106: 849 | K106: 849
A107: Lordinot | B107: Carine | C107: Initiale | D107: 912 | E107: 2017 | F107: O | G107: N | H107: 2018 | I107: 0 | J107: 1824 | K107: 1368
A108: Narcy pozzoli | B108: Marie jose | C108: Initiale | D108: 824 | E108: 2016 | F108: O | G108: O | H108: 2018 | I108: 0 | J108: 1236 | K108: 1030
A109: Jacob | B109: Laurent | C109: Différence | D109: 1400 | E109: 2017 | F109: O | G109: N | H109: 2018 | I109: 0 | J109: 2800 | K109: 2100
A110: Tran haury | B110: Catherine | C110: Initiale | D110: 618 | E110: 2017 | F110: O | G110: O | H110: 2018 | I110: 0 | J110: 927 | K110: 772.5
A111: Ziesel | B111: Sonia | C111: Plénitude | D111: 2054.8 | E111: 2018 | F111: O | G111: N | H111: 2018 | I111: 0 | J111: 4109.6 | K111: 3082.2
A112: Kebci | B112: Xavier | C112: Initiale | D112: 715 | E112: 2016 | F112: O | G112: O | H112: 2018 | I112: 0 | J112: 1072.5 | K112: 893.75
A113: Delamain | B113: Guy | C113: Essentiel | D113: 735.32 | E113: 2018 | F113: O | G113: O | H113: 2018 | I113: 0 | J113: 1102.98 | K113: 919.15
A114: Albert | B114: Dominique | C114: Plénitude | D114: 1243 | E114: 2018 | F114: N | G114: O | H114: 2018 | I114: 0 | J114: 1864.5 | K114: 1553.75
A115: Lichter | B115: Jean marc | C115: Essentiel | D115: 1143.28 | E115: 2016 | F115: O | G115: O | H115: 2018 | I115: 0 | J115: 1714.92 | K115: 1429.1
A116: Rouveau | B116: Nicole | C116: Différence | D116: 1083.25 | E116: 2017 | F116: O | G116: O | H116: 2018 | I116: 1 | J116: 1624.875 | K116: 1624.875
A117: Barounas | B117: Anne | C117: Différence | D117: 1631 | E117: 2018 | F117: O | G117: O | H117: 2018 | I117: 0 | J117: 2446.5 | K117: 2038.75
A118: Rolle | B118: Martine | C118: Initiale | D118: 529 | E118: 2018 | F118: O | G118: N | H118: 2018 | I118: 0 | J118: 1058 | K118: 793.5
A119: Ognibene | B119: Gregori | C119: Initiale | D119: 645 | E119: 2018 | F119: O | G119: O | H119: 2018 | I119: 0 | J119: 967.5 | K119: 806.25
A120: Thery | B120: Catherine | C120: Initiale | D120: 644 | E120: 2016 | F120: N | G120: O | H120: 2018 | I120: 0 | J120: 966 | K120: 805
A121: Lalouani | B121: Daniel | C121: Plénitude | D121: 2017.4 | E121: 2018 | F121: O | G121: N | H121: 2018 | I121: 0 | J121: 4034.8 | K121: 3026.1
A122: Santacruz | B122: Jocelyne | C122: Initiale | D122: 592 | E122: 2017 | F122: O | G122: N | H122: 2018 | I122: 0 | J122: 1184 | K122: 888
A123: Moyer | B123: Frédéric | C123: Plénitude | D123: 1194.6 | E123: 2016 | F123: N | G123: O | H123: 2018 | I123: 1 | J123: 1791.9 | K123: 1791.9
A124: Ranchin | B124: Jean luc | C124: Initiale | D124: 940 | E124: 2017 | F124: N | G124: O | H124: 2018 | I124: 1 | J124: 1410 | K124: 1410
A125: Vincent genod | B125: Michel | C125: Initiale | D125: 785 | E125: 2017 | F125: O | G125: O | H125: 2018 | I125: 0 | J125: 1177.5 | K125: 981.25
A126: Sansot | B126: Anne marie | C126: Plénitude | D126: 2017.4 | E126: 2016 | F126: O | G126: O | H126: 2018 | I126: 0 | J126: 3026.1 | K126: 2521.75
A127: Coille | B127: Daniel | C127: Initiale | D127: 903 | E127: 2018 | F127: N | G127: O | H127: 2018 | I127: 0 | J127: 1354.5 | K127: 1128.75
A128: De march | B128: Marie pierre | C128: Plénitude | D128: 1894.2 | E128: 2016 | F128: O | G128: O | H128: 2018 | I128: 0 | J128: 2841.3 | K128: 2367.75
A129: Calendini | B129: Danielle | C129: Essentiel | D129: 1129.64 | E129: 2018 | F129: O | G129: O | H129: 2018 | I129: 0 | J129: 1694.46 | K129: 1412.05
A130: Durafour | B130: Laurence | C130: Initiale | D130: 579 | E130: 2016 | F130: O | G130: O | H130: 2018 | I130: 0 | J130: 868.5 | K130: 723.75
A131: Bot | B131: Jean pierre | C131: Initiale | D131: 545 | E131: 2017 | F131: N | G131: O | H131: 2018 | I131: 0 | J131: 817.5 | K131: 681.25
A132: Mouysset | B132: Bernard | C132: Initiale | D132: 511 | E132: 2018 | F132: N | G132: O | H132: 2018 | I132: 1 | J132: 766.5 | K132: 766.5
A133: Bersillon | B133: Eliane | C133: Initiale | D133: 761 | E133: 2018 | F133: O | G133: O | H133: 2018 | I133: 0 | J133: 1141.5 | K133: 951.25
A134: Robert | B134: Jean Francois | C134: Plénitude | D134: 1918.4 | E134: 2016 | F134: O | G134: N | H134: 2018 | I134: 0 | J134: 3836.8 | K134: 2877.6
A135: Le gouguec | B135: Stéphane | C135: Initiale | D135: 900 | E135: 2018 | F135: O | G135: O | H135: 2018 | I135: 0 | J135: =surprime($D135,$G135,J$5,$H135) -> 1350 | K135: =surprime(D135,G135,K$5,$H135,I135) -> 1125
A136: Grosjean | B136: Jean luc | C136: Initiale | D136: 823 | E136: 2018 | F136: N | G136: O | H136: 2018 | I136: 0 | J136: 1234.5 | K136: 1028.75
A137: Jarry | B137: Marina | C137: Plénitude | D137: 1639 | E137: 2017 | F137: O | G137: O | H137: 2018 | I137: 0 | J137: 2458.5 | K137: 2048.75
A138: Brossillon | B138: Philippe | C138: Initiale | D138: 519 | E138: 2017 | F138: O | G138: O | H138: 2018 | I138: 0 | J138: 778.5 | K138: 648.75
A139: Berger jacob | B139: Janine | C139: Essentiel | D139: 828.32 | E139: 2018 | F139: O | G139: O | H139: 2018 | I139: 0 | J139: 1242.48 | K139: 1035.4
A140: Marty | B140: Guylene | C140: Essentiel | D140: 721.68 | E140: 2017 | F140: O | G140: O | H140: 2018 | I140: 0 | J140: 1082.52 | K140: 902.1
A141: Dalle | B141: Fabrice | C141: Plénitude | D141: 1731.4 | E141: 2018 | F141: O | G141: O | H141: 2018 | I141: 0 | J141: 2597.1 | K141: 2164.25
A142: Bernard | B142: Carole | C142: Essentiel | D142: 884.12 | E142: 2016 | F142: O | G142: O | H142: 2018 | I142: 1 | J142: 1326.18 | K142: 1326.18
A143: Eleouet | B143: Marc henri | C143: Initiale | D143: 592 | E143: 2016 | F143: O | G143: O | H143: 2018 | I143: 1 | J143: 888 | K143: 888
A144: Azan couturier | B144: Serge | C144: Initiale | D144: 711 | E144: 2016 | F144: O | G144: O | H144: 2018 | I144: 0 | J144: 1066.5 | K144: 888.75
A145: Saraf | B145: Marie therese | C145: Différence | D145: 1211 | E145: 2017 | F145: O | G145: O | H145: 2018 | I145: 0 | J145: 1816.5 | K145: 1513.75
A146: Jandin | B146: Gregoire | C146: Initiale | D146: 601 | E146: 2016 | F146: O | G146: N | H146: 2018 | I146: 0 | J146: 1202 | K146: 901.5
A147: Liegeois | B147: Francine | C147: Différence | D147: 889 | E147: 2019 | F147: O | G147: O | H147: 2019 | I147: 0 | J147: 0 | K147: 1333.5
A148: Gandouin | B148: Gerard | C148: Plénitude | D148: 1445.4 | E148: 2016 | F148: O | G148: O | H148: 2018 | I148: 0 | J148: 2168.1 | K148: 1806.75
A149: Aranguren | B149: Emmanuel | C149: Essentiel | D149: 872.96 | E149: 2019 | F149: O | G149: O | H149: 2019 | I149: 0 | J149: 0 | K149: 1309.44
A150: Varley | B150: Sophia | C150: Essentiel | D150: 899 | E150: 2017 | F150: O | G150: O | H150: 2018 | I150: 0 | J150: 1348.5 | K150: 1123.75
A151: Dib | B151: Georges | C151: Essentiel | D151: 896.52 | E151: 2017 | F151: O | G151: O | H151: 2018 | I151: 0 | J151: 1344.78 | K151: 1120.65
A152: Minialai | B152: Gloria | C152: Essentiel | D152: 956.04 | E152: 2017 | F152: O | G152: O | H152: 2018 | I152: 0 | J152: 1434.06 | K152: 1195.05
A153: Mallais | B153: Marie christine | C153: Initiale | D153: 559 | E153: 2019 | F153: O | G153: O | H153: 2019 | I153: 0 | J153: 0 | K153: 838.5
A154: Viel | B154: Monique | C154: Essentiel | D154: 1077.56 | E154: 2019 | F154: N | G154: O | H154: 2019 | I154: 0 | J154: 0 | K154: 1616.34
A155: Lenoir | B155: Denise | C155: Initiale | D155: 730 | E155: 2016 | F155: O | G155: O | H155: 2018 | I155: 0 | J155: 1095 | K155: 912.5
A156: Verre | B156: François marie | C156: Essentiel | D156: 951.08 | E156: 2018 | F156: O | G156: O | H156: 2018 | I156: 0 | J156: 1426.62 | K156: 1188.85
A157: Lucas | B157: Philippe | C157: Essentiel | D157: 996.96 | E157: 2018 | F157: O | G157: O | H157: 2018 | I157: 0 | J157: 1495.44 | K157: 1246.2
A158: George | B158: Christine | C158: Différence | D158: 1407 | E158: 2016 | F158: O | G158: O | H158: 2018 | I158: 0 | J158: 2110.5 | K158: 1758.75
A159: Coucoureux | B159: Olivier | C159: Initiale | D159: 915 | E159: 2019 | F159: O | G159: N | H159: 2019 | I159: 0 | J159: 0 | K159: 1830
A160: Kopel | B160: Bekai | C160: Initiale | D160: 798 | E160: 2018 | F160: O | G160: O | H160: 2018 | I160: 1 | J160: 1197 | K160: 1197
A161: Rouillon | B161: Bertrand | C161: Différence | D161: 1555.75 | E161: 2016 | F161: N | G161: O | H161: 2018 | I161: 1 | J161: 2333.625 | K161: 2333.625
A162: Mege | B162: Mohamed | C162: Plénitude | D162: 1766.6 | E162: 2016 | F162: O | G162: N | H162: 2018 | I162: 0 | J162: 3533.2 | K162: 2649.9
A163: Messaoudene | B163: Anne | C163: Essentiel | D163: 899 | E163: 2018 | F163: O | G163: O | H163: 2018 | I163: 0 | J163: 1348.5 | K163: 1123.75
A164: Adam | B164: Vincent | C164: Essentiel | D164: 655.96 | E164: 2017 | F164: N | G164: O | H164: 2018 | I164: 0 | J164: 983.94 | K164: 819.95
A165: Kornman | B165: Gilberte | C165: Différence | D165: 1473.5 | E165: 2018 | F165: O | G165: N | H165: 2018 | I165: 0 | J165: 2947 | K165: 2210.25
A166: Thurel | B166: Monique | C166: Initiale | D166: 508 | E166: 2019 | F166: O | G166: O | H166: 2019 | I166: 0 | J166: 0 | K166: 762
A167: Assako | B167: Eva | C167: Différence | D167: 1545.25 | E167: 2016 | F167: O | G167: O | H167: 2018 | I167: 0 | J167: 2317.875 | K167: 1931.5625
A168: Cohen | B168: Laurent | C168: Essentiel | D168: 809.72 | E168: 2018 | F168: O | G168: O | H168: 2018 | I168: 0 | J168: 1214.58 | K168: 1012.15
A169: Faustin | B169: Monique | C169: Plénitude | D169: 1680.8 | E169: 2016 | F169: O | G169: O | H169: 2018 | I169: 0 | J169: 2521.2 | K169: 2101
A170: Pageot | B170: Laurent | C170: Essentiel | D170: 1050.28 | E170: 2016 | F170: N | G170: O | H170: 2018 | I170: 0 | J170: 1575.42 | K170: 1312.85
A171: Hidouche | B171: Isabelle | C171: Essentiel | D171: 1151.96 | E171: 2016 | F171: O | G171: N | H171: 2018 | I171: 0 | J171: 2303.92 | K171: 1727.94
A172: Coulomb stiegler | B172: Michel | C172: Initiale | D172: 823 | E172: 2016 | F172: O | G172: O | H172: 2018 | I172: 0 | J172: 1234.5 | K172: 1028.75
A173: Lemaire | B173: Rémy | C173: Différence | D173: 1239 | E173: 2017 | F173: N | G173: O | H173: 2018 | I173: 1 | J173: 1858.5 | K173: 1858.5
A174: Allemand | B174: Azzedine | C174: Différence | D174: 1662.5 | E174: 2017 | F174: N | G174: O | H174: 2018 | I174: 0 | J174: 2493.75 | K174: 2078.125
A175: Reymann | B175: Pascale | C175: Initiale | D175: 551 | E175: 2017 | F175: O | G175: O | H175: 2018 | I175: 0 | J175: 826.5 | K175: 688.75
A176: Genesco | B176: Nathalie | C176: Initiale | D176: 810 | E176: 2018 | F176: O | G176: O | H176: 2018 | I176: 1 | J176: 1215 | K176: 1215
A177: Kolli | B177: Pascal | C177: Essentiel | D177: 1075.08 | E177: 2017 | F177: O | G177: O | H177: 2018 | I177: 0 | J177: 1612.62 | K177: 1343.85
A178: Doucet | B178: Rachid | C178: Différence | D178: 1342.25 | E178: 2016 | F178: O | G178: O | H178: 2018 | I178: 0 | J178: 2013.375 | K178: 1677.8125
A179: Faussey | B179: Colette | C179: Essentiel | D179: 778.72 | E179: 2016 | F179: O | G179: O | H179: 2018 | I179: 0 | J179: 1168.08 | K179: 973.4
A180: Ismail | B180: Daniel | C180: Plénitude | D180: 1284.8 | E180: 2018 | F180: O | G180: O | H180: 2018 | I180: 0 | J180: 1927.2 | K180: 1606
A181: Bourassin | B181: Jocelyne | C181: Initiale | D181: 548 | E181: 2019 | F181: O | G181: O | H181: 2019 | I181: 0 | J181: 0 | K181: 822
A182: Novak | B182: David | C182: Plénitude | D182: 1315.6 | E182: 2016 | F182: O | G182: O | H182: 2018 | I182: 0 | J182: 1973.4 | K182: 1644.5
A183: Dubault | B183: Christian | C183: Plénitude | D183: 2090 | E183: 2019 | F183: N | G183: O | H183: 2019 | I183: 0 | J183: 0 | K183: 3135
A184: Shiro | B184: Geneviève | C184: Plénitude | D184: 1518 | E184: 2017 | F184: O | G184: O | H184: 2018 | I184: 0 | J184: 2277 | K184: 1897.5
A185: De vallois | B185: Corinne | C185: Initiale | D185: 536 | E185: 2016 | F185: N | G185: O | H185: 2018 | I185: 0 | J185: 804 | K185: 670
A186: Marzougui | B186: Valerie | C186: Initiale | D186: 942 | E186: 2017 | F186: O | G186: O | H186: 2018 | I186: 0 | J186: 1413 | K186: 1177.5
A187: Bride | B187: Hélène | C187: Différence | D187: 1359.75 | E187: 2016 | F187: O | G187: O | H187: 2018 | I187: 0 | J187: 2039.625 | K187: 1699.6875
A188: Benaissa | B188: Josette | C188: Essentiel | D188: 747.72 | E188: 2018 | F188: O | G188: O | H188: 2018 | I188: 1 | J188: 1121.58 | K188: 1121.58
A189: Le rouzic | B189: Roland | C189: Essentiel | D189: 1001.92 | E189: 2016 | F189: N | G189: O | H189: 2018 | I189: 0 | J189: 1502.88 | K189: 1252.4
A190: Revault | B190: Marie odile | C190: Différence | D190: 1013.25 | E190: 2018 | F190: O | G190: O | H190: 2018 | I190: 0 | J190: 1519.875 | K190: 1266.5625
A191: Maviel | B191: Valerie | C191: Plénitude | D191: 1122 | E191: 2016 | F191: O | G191: O | H191: 2018 | I191: 1 | J191: 1683 | K191: 1683
A192: Blandin | B192: Karine | C192: Initiale | D192: 877 | E192: 2016 | F192: O | G192: O | H192: 2018 | I192: 0 | J192: 1315.5 | K192: 1096.25
A193: Aupetit | B193: Jean noël | C193: Initiale | D193: 707 | E193: 2019 | F193: O | G193: O | H193: 2019 | I193: 0 | J193: 0 | K193: 1060.5
A194: Le moigne | B194: Marie francoise | C194: Essentiel | D194: 717.96 | E194: 2018 | F194: O | G194: O | H194: 2018 | I194: 0 | J194: 1076.94 | K194: 897.45
A195: Fau | B195: Philippe | C195: Essentiel | D195: 1116 | E195: 2017 | F195: O | G195: O | H195: 2018 | I195: 0 | J195: 1674 | K195: 1395
A196: Naim | B196: Frédéric | C196: Plénitude | D196: 1848 | E196: 2017 | F196: O | G196: O | H196: 2018 | I196: 0 | J196: 2772 | K196: 2310
A197: Kirchhofer | B197: Cécile | C197: Initiale | D197: 647 | E197: 2018 | F197: O | G197: O | H197: 2018 | I197: 0 | J197: 970.5 | K197: 808.75
A198: Daubigney | B198: Beatrice | C198: Essentiel | D198: 779.96 | E198: 2018 | F198: O | G198: O | H198: 2018 | I198: 0 | J198: 1169.94 | K198: 974.95
A199: Condette | B199: Brigitte | C199: Initiale | D199: 782 | E199: 2018 | F199: O | G199: N | H199: 2018 | I199: 0 | J199: =surprime($D199,$G199,J$5,$H199) -> 1564 | K199: =surprime(D199,G199,K$5,$H199,I199) -> 1173
A200: Meunier | B200: Jelloul | C200: Différence | D200: 1079.75 | E200: 2018 | F200: N | G200: O | H200: 2018 | I200: 0 | J200: 1619.625 | K200: 1349.6875
A201: Blondel lawlor | B201: Sylviane | C201: Plénitude | D201: 1276 | E201: 2018 | F201: O | G201: O | H201: 2018 | I201: 0 | J201: 1914 | K201: 1595
... 176 more rows
